NUMERO_MANDATO;RIGA_MANDATO;QUIET;IMPORTO_RIGA;IMPORTO_MANDATO;BENEFICIARIO;CIG;TITOLO_PAGAMENTO;DATA_MANDATO;CAPITOLO;ARTICOLO;NUMERO_IMPEGNO;TITOLO;DESCR_TITOLO;LIVELLO_II;DESCR_LIVELLO_II;LIVELLO_III;DESCR_LIVELLO_III;LIVELLO_IV;DESCR_LIVELLO_IV;LIVELLO_V;DESCR_LIVELLO_V;DATA_PAG_EFF;
2;1;0;"6.767,00";"6.767,00";ASSITECA S.P.A.;Z22214D80E;PAGAMENTO PREMIO POLIZZA RCA ANNO 2019 - CIG Z22214D80E;09-01-2019;263;0;419;1;Spese correnti;10;Altre spese correnti;4;Premi di assicurazione;1;Premi di assicurazione contro i danni;3;Premi di assicurazione per responsabilità civile verso terzi;09-01-2019;
3;1;0;"1.893,00";"1.893,00";ASSITECA S.P.A.;ZD62673F50;PAGAMENTO PREMIO POLIZZA INFORTUNI ANNO 2019 - CIG ZD62673F50;09-01-2019;263;0;421;1;Spese correnti;10;Altre spese correnti;4;Premi di assicurazione;1;Premi di assicurazione contro i danni;999;Altri premi di assicurazione contro i danni;09-01-2019;
4;1;0;"1.000,00";"1.000,00";ASSITECA S.P.A.;ZDB2673FAE;PAGAMENTO PREMIO POLIZZA KASKO ANNO 2019 - CIG ZDB2673FAE;09-01-2019;263;0;422;1;Spese correnti;10;Altre spese correnti;4;Premi di assicurazione;1;Premi di assicurazione contro i danni;999;Altri premi di assicurazione contro i danni;09-01-2019;
5;1;0;"5.524,99";"5.524,99";ASSITECA S.P.A.;Z3C2673FF7;PAGAMENTO PREMIO POLIZZA RCTO ANNO 2019 - CIG. Z3C2673FF7;09-01-2019;263;0;423;1;Spese correnti;10;Altre spese correnti;4;Premi di assicurazione;1;Premi di assicurazione contro i danni;3;Premi di assicurazione per responsabilità civile verso terzi;09-01-2019;
6;1;0;"4.614,17";"4.614,17";ASSITECA S.P.A.;ZBC2674026;PAGAMENTO PREMIO POLIZZA RC PATRIMONIALE ANNO 2019 - CIG ZBC2674026;09-01-2019;263;0;424;1;Spese correnti;10;Altre spese correnti;4;Premi di assicurazione;1;Premi di assicurazione contro i danni;3;Premi di assicurazione per responsabilità civile verso terzi;09-01-2019;
7;1;0;"5.000,00";"5.000,00";ASSOCIAZIONE GRUPPO VULCANO ONLUS;Z7824C53C1;"GESTIONE DEL PROGETTO ""CI VOGLIONO BAMBINI, BAMBINE, RAGAZZI E RAGAZZE PER FAR CRESCERE UNA CITTA'"" 2^ ANNUALITA' - 2018/2019 - AZIONE 1: ESPERIENZE DI CITTADINANZA - ACCONTO 2019";10-01-2019;1604;0;302;1;Spese correnti;3;Acquisto di beni e servizi;2;Acquisto di servizi;15;Contratti di servizio pubblico;9;Contratti di servizio di assistenza sociale domiciliare;10-01-2019;
8;1;0;"50,00";"50,00";SOCIETA' EDITORIALE VITA;Z4B266608A;ABBONAMENTO ALLA RIVISTA "VITA" PER L'ANNO 2019. CIG Z4B266608A;10-01-2019;1602;0;412;1;Spese correnti;3;Acquisto di beni e servizi;1;Acquisto di beni;1;"Giornali, riviste e pubblicazioni";1;Giornali e riviste;10-01-2019;
9;1;0;"2.039,70";"2.039,70";VENETO BENESSERE E CAMMINA ONLUS;Z6421FD624;LIQUIDAZIONE CONTRIBUTO PER LA GESTIONE DELL'ATTIVITA' DEI GRUPPI DI CAMMINO DEL PROGETTO "CAMMINA CAMMINA"  - BIENNIO 2018/2019 Z6421FD624;10-01-2019;1913;0;29;1;Spese correnti;4;Trasferimenti correnti;4;Trasferimenti correnti a Istituzioni Sociali Private;1;Trasferimenti correnti a Istituzioni Sociali Private;1;Trasferimenti correnti a Istituzioni Sociali Private;10-01-2019;
10;1;0;"310,00";"310,00";MAGGIOLI SPA; ;SALDO Fatt.n. 0004503277  del 12/12/2018 CORSO ANTICORRUZIONEON-LINE 2017-2018;10-01-2019;134;0;379;1;Spese correnti;3;Acquisto di beni e servizi;2;Acquisto di servizi;4;Acquisto di servizi per formazione e addestramento del personale dell'ente;4;Acquisto di servizi per formazione obbligatoria;10-01-2019;
11;1;0;"408,70";"408,70";SOLUZIONE UFFICIO S.R.L.;Z0418F1DC4;SALDO Fatt.n. 8048/E  del 18/12/2018 CANONE DI NOLEGGIO FOTOCOPIATORI;10-01-2019;264;0;87;1;Spese correnti;3;Acquisto di beni e servizi;2;Acquisto di servizi;19;Servizi informatici e di telecomunicazioni;9;Servizi per le postazioni di lavoro e relativa manutenzione;10-01-2019;
12;1;0;"3.078,11";"3.078,11";SERVIZI SOCIALI LA GOCCIA  S.C.S.A R.L.;610826186E;SALDO Fatt.n. 497/PA  del 10/12/2018 ASSISTENZA DOMICILIARE ANZIANI NOVEMBRE 2018;10-01-2019;1610;0;30;1;Spese correnti;3;Acquisto di beni e servizi;2;Acquisto di servizi;15;Contratti di servizio pubblico;9;Contratti di servizio di assistenza sociale domiciliare;10-01-2019;
13;1;0;"2.432,20";"2.432,20";SERVIZI SOCIALI LA GOCCIA  S.C.S.A R.L.;610826186E;SALDO Fatt.n. 498/PA  del 10/12/2018 ASSISTENZA SOCIALE NOVEMBRE 2018;10-01-2019;1610;0;30;1;Spese correnti;3;Acquisto di beni e servizi;2;Acquisto di servizi;15;Contratti di servizio pubblico;9;Contratti di servizio di assistenza sociale domiciliare;10-01-2019;
14;1;0;"430,00";"430,00";FARMACIA PERUZZO CORTESE SNC di Peruzzo Nadia;ZAF266F803;SALDO Fatt.n. 47 / FE  del 22/12/2018 FORNITURA MATERIALE IGIENE PERSONALE ASSISTENZA DOMICILIARE;10-01-2019;1704;0;409;1;Spese correnti;3;Acquisto di beni e servizi;2;Acquisto di servizi;15;Contratti di servizio pubblico;9;Contratti di servizio di assistenza sociale domiciliare;10-01-2019;
15;1;0;"1.092,89";"1.092,89";RIPAMONTI ENNIO;Z1E24C5402;"SALDO Fatt.n. PA 16/18  del 24/12/2018 ATTIVITA' DI FORMAZIONE NELL'AMBITO DEL PROGETTO INTERCOMUNALE ""CI VOGLIONO BABINI, BAMBINE, RAGAZZI E RAGAZZE PER FAR CRESCERE UNA CITTA'"" PROMUOVERE IL BENESSERE IN PREADOLESCENZA";10-01-2019;1611;0;337;1;Spese correnti;3;Acquisto di beni e servizi;2;Acquisto di servizi;11;Prestazioni professionali e specialistiche;999;Altre prestazioni professionali e specialistiche n.a.c.;10-01-2019;
16;1;0;"283,37";"283,37";SERVIZI SOCIALI LA GOCCIA  S.C.S.A R.L.;Z3420590EA;SALDO Fatt.n. 503/PA  del 27/12/2018 PROGETTO VESTA MESE DI NOVEMBRE 2018;10-01-2019;1660;0;364;1;Spese correnti;3;Acquisto di beni e servizi;2;Acquisto di servizi;11;Prestazioni professionali e specialistiche;2;"Assistenza psicologica, sociale e religiosa";10-01-2019;
17;1;0;"56,00";"56,00";AUTOLAVAGGIO MILLE LUNE DI COSTACURTA SIMONE;Z9C1E581FD;SALDO Fatt.n. FATTPA 17_18  del 30/12/2018 SERVIZIO DI LAVAGGIO AUTOVETTURE IN USO ALLA POLIZIA LOCALE TARGATE ZA453H1 E YA791AL;10-01-2019;233;0;385;1;Spese correnti;3;Acquisto di beni e servizi;2;Acquisto di servizi;9;Manutenzione ordinaria e riparazioni;1;"Manutenzione ordinaria e riparazioni di mezzi di trasporto ad uso civile, di sicurezza e ordine pubblico";10-01-2019;
18;1;0;"20,01";"20,01";AUTOLAVAGGIO MILLE LUNE DI COSTACURTA SIMONE;Z9C1E581FD;SALDO Fatt.n. FATTPA 18_18  del 30/12/2018 SERVIZIO LAVAGGIO AUTOVETTURA IN USO AI SERVIZI SOCIALI FIAT DOBLO' TARGATO FL691XD;10-01-2019;233;0;385;1;Spese correnti;3;Acquisto di beni e servizi;2;Acquisto di servizi;9;Manutenzione ordinaria e riparazioni;1;"Manutenzione ordinaria e riparazioni di mezzi di trasporto ad uso civile, di sicurezza e ordine pubblico";10-01-2019;
19;1;0;"285,70";"285,70";SANTEX S.P.A.;Z4F2571E73;SALDO Fatt.n. C63-38012262  del 15/11/2018 Fornitura di materiale sanitario per assistenza domiciliare;10-01-2019;1601;0;353;1;Spese correnti;3;Acquisto di beni e servizi;1;Acquisto di beni;2;Altri beni di consumo;999;Altri beni e materiali di consumo n.a.c.;10-01-2019;
20;1;0;"-630,00";"6.120,00";LA ROSINA RISTORANTE E HOTEL;Z3C2590C63;SALDO Fatt.n. 4/PA  del 01/09/2017 STORNO FATTURA N. 2/PA DEL 2017 PER ERRATA IMPUTAZIONE COSTI;10-01-2019;1703;0;346;1;Spese correnti;3;Acquisto di beni e servizi;2;Acquisto di servizi;99;Altri servizi;999;Altri servizi diversi n.a.c.;10-01-2019;
20;2;0;"630,00";"6.120,00";LA ROSINA RISTORANTE E HOTEL;Z3C2590C63;SALDO Fatt.n. 2/PA  del 31/07/2017 FATTURA INVIATA PER ERRORE. NON DI COMPETENZA DELL'UMM;10-01-2019;1703;0;346;1;Spese correnti;3;Acquisto di beni e servizi;2;Acquisto di servizi;99;Altri servizi;999;Altri servizi diversi n.a.c.;10-01-2019;
20;3;0;"6.120,00";"6.120,00";LA ROSINA RISTORANTE E HOTEL;Z3C2590C63;SALDO Fatt.n. 8/PA  del 14/12/2018 PRANZO SOCIALE DEL 09/12/2018;10-01-2019;1703;0;346;1;Spese correnti;3;Acquisto di beni e servizi;2;Acquisto di servizi;99;Altri servizi;999;Altri servizi diversi n.a.c.;10-01-2019;
21;1;0;"613,10";"613,10";SCANAGATTA CARBURANTI SRL;Z1221C7BB3;SALDO Fatt.n. V3  40  del 31/12/2018 FORNITURA CARBURANTE AGLI AUTOMEZZI IN USO AI SERVIZI SOCIALI: MESE DI DICEMBRE 2018;10-01-2019;1599;0;45;1;Spese correnti;3;Acquisto di beni e servizi;1;Acquisto di beni;2;Altri beni di consumo;2;"Carburanti, combustibili e lubrificanti";10-01-2019;
22;1;0;"493,97";"493,97";SCANAGATTA CARBURANTI SRL;Z1221C7BB3;SALDO Fatt.n. V3  39  del 31/12/2018 FORNITURA CARBURANTE AGLI AUTOMEZZI IN USO ALLA POLIZIA LOCALE: MESE DI DICEMBRE 2018;10-01-2019;400;0;44;1;Spese correnti;3;Acquisto di beni e servizi;1;Acquisto di beni;2;Altri beni di consumo;2;"Carburanti, combustibili e lubrificanti";10-01-2019;
23;1;0;"210,38";"210,38";AUTOFFICINA ELETTRAUTO PIZZATO ENZO;ZAF1D259E7;SALDO Fatt.n. 00081  del 31/12/2018 MANUTENZIONE AUTOMEZZO IN USO ALLA POLIZIA LOCALE;10-01-2019;233;0;117;1;Spese correnti;3;Acquisto di beni e servizi;2;Acquisto di servizi;9;Manutenzione ordinaria e riparazioni;1;"Manutenzione ordinaria e riparazioni di mezzi di trasporto ad uso civile, di sicurezza e ordine pubblico";10-01-2019;
24;1;0;"744,20";"744,20";AIESI HOSPITAL S.A.S.;Z7825C4B54;SALDO Fatt.n. 7351/01  del 31/12/2018 FORNITURA MATERIALE IGIENICO-SANITARIO;10-01-2019;1601;0;360;1;Spese correnti;3;Acquisto di beni e servizi;1;Acquisto di beni;2;Altri beni di consumo;999;Altri beni e materiali di consumo n.a.c.;10-01-2019;
25;1;0;"160,00";"160,00";PROGETTO SOFIS;Z2625887FA;SALDO Fatt.n. 6/A  del 03/01/2019 PARTECIPAZIONE DIPENDENTE FRISON MICHELE ANGELO AL CORSO SULLE GESTIONI INDIRETTE NEI SERVIZI SOCIALI ED IL CODICE DEL TERZO SETTORE;10-01-2019;134;0;347;1;Spese correnti;3;Acquisto di beni e servizi;2;Acquisto di servizi;4;Acquisto di servizi per formazione e addestramento del personale dell'ente;999;Acquisto di servizi per altre spese per formazione e addestramento n.a.c.;10-01-2019;
26;1;0;"353,60";"353,60";TELECOM ITALIA S.P.A. - (TIM S.P.A.);ZE422929C4;SALDO Fatt.n. 7X05420563  del 14/12/2018 SERVIZI DI TELEFONIA MOBILE DENOMINATI "TIM SOLO DATI RICARICABILE MEPA" E "TIM EUROPA UNLIMETED MEPA" - PERIODO MARZO 2018 - FEBBRAIO 2020 - SETTORE VIGILI: 1BIM 2019;10-01-2019;231;0;103;1;Spese correnti;3;Acquisto di beni e servizi;2;Acquisto di servizi;5;Utenze e canoni;2;Telefonia mobile;10-01-2019;
27;1;0;"224,79";"224,79";AIESI HOSPITAL S.A.S.;Z2B259854E;SALDO Fatt.n. 6605/01  del 30/11/2018 FORNITURA MATERIALE IGIENICO-SANITORIO;10-01-2019;1601;0;350;1;Spese correnti;3;Acquisto di beni e servizi;1;Acquisto di beni;2;Altri beni di consumo;999;Altri beni e materiali di consumo n.a.c.;10-01-2019;
28;1;0;"4,20";"68,00";ECONOMO UNIONE MONTANA MAROSTICENSE (PIGATO ANTONELLA); ;Rimborso bolletta N.    54 del  17-12-18 SPESE X PARCHEGGIO A VICENZA DEL 14112018 X ACCOMPAGNARE TESTE IN TRIBUNALE - VICE COMMISSARIO PERIN MICHELE;11-01-2019;244;0;11;1;Spese correnti;3;Acquisto di beni e servizi;2;Acquisto di servizi;2;"Organizzazione eventi, pubblicita` e servizi per trasferta";999;"Altre spese per relazioni pubbliche, convegni e mostre, pubblicita` n.a.c";11-01-2019;
28;2;0;"13,80";"68,00";ECONOMO UNIONE MONTANA MAROSTICENSE (PIGATO ANTONELLA); ;Rimborso bolletta N.    49 del  15-10-18 PAGAMENTO PEDAGGIO AUTOSTRADALE E PARCHEGGIO X INCONTRO IN REGIONE CON ASSESSORE BERTOLIN A VENEZIA IL 13092018 - DOTT. FRISON;11-01-2019;244;0;11;1;Spese correnti;3;Acquisto di beni e servizi;2;Acquisto di servizi;2;"Organizzazione eventi, pubblicita` e servizi per trasferta";999;"Altre spese per relazioni pubbliche, convegni e mostre, pubblicita` n.a.c";11-01-2019;
28;3;0;"18,60";"68,00";ECONOMO UNIONE MONTANA MAROSTICENSE (PIGATO ANTONELLA); ;Rimborso bolletta N.    53 del  17-12-18 PEDAGGIO AUTOSTRADALE DEL 03122018 X VISITA AGLI HOTEL DI CAORLE X SOGGIORNI CLIMATICI ANZIANI CON ASS. BERTOLIN E UN'ACCOMPAGNATRICE - DOTT. FRISON;11-01-2019;244;0;11;1;Spese correnti;3;Acquisto di beni e servizi;2;Acquisto di servizi;2;"Organizzazione eventi, pubblicita` e servizi per trasferta";999;"Altre spese per relazioni pubbliche, convegni e mostre, pubblicita` n.a.c";11-01-2019;
28;4;0;"31,40";"68,00";ECONOMO UNIONE MONTANA MAROSTICENSE (PIGATO ANTONELLA); ;Rimborso bolletta N.    52 del  17-12-18 PEDAGGIO AUTOSTRADALE DEL 27112018 X VISITA AGLI HOTEL DI BELLARIA IGEA MARINA X SOGGIORNI CLIMATICI ANZIANI CON ASS. BERTOLIN - DOTT. FRISON;11-01-2019;244;0;11;1;Spese correnti;3;Acquisto di beni e servizi;2;Acquisto di servizi;2;"Organizzazione eventi, pubblicita` e servizi per trasferta";999;"Altre spese per relazioni pubbliche, convegni e mostre, pubblicita` n.a.c";11-01-2019;
29;1;0;"55,84";"55,84";ECONOMO UNIONE MONTANA MAROSTICENSE (PIGATO ANTONELLA); ;Rimborso bolletta N.    47 del  15-10-18 RIFORNIMENTO GPL FIAT TIPO YA791AL - COMANDANTE CRESTANI;11-01-2019;400;0;328;1;Spese correnti;3;Acquisto di beni e servizi;1;Acquisto di beni;2;Altri beni di consumo;2;"Carburanti, combustibili e lubrificanti";11-01-2019;
30;1;0;"28,30";"28,30";ECONOMO UNIONE MONTANA MAROSTICENSE (PIGATO ANTONELLA); ;Rimborso bolletta N.    48 del  15-10-18 RIFORNIMENTO GPL FIAT TIPO YA791AL - COMANDANTE CRESTANI;11-01-2019;400;0;330;1;Spese correnti;3;Acquisto di beni e servizi;1;Acquisto di beni;2;Altri beni di consumo;2;"Carburanti, combustibili e lubrificanti";11-01-2019;
31;1;0;"33,00";"33,00";ECONOMO UNIONE MONTANA MAROSTICENSE (PIGATO ANTONELLA); ;Rimborso bolletta N.    50 del  16-10-18 ACQUISTO N 1050 BOLLETTINI C/C POSTALE 1029155916 PER VIOLAZIONI AL CDS - DIP BERTONCELLO MONICA;11-01-2019;401;0;331;1;Spese correnti;3;Acquisto di beni e servizi;1;Acquisto di beni;2;Altri beni di consumo;1;"Carta, cancelleria e stampati";11-01-2019;
32;1;0;"68,68";"68,68";ECONOMO UNIONE MONTANA MAROSTICENSE (PIGATO ANTONELLA);0000000000;Rimborso bolletta N.    51 del  17-12-18 ACQUISTO MARCHE DA BOLLO E COSTI NOTIFICA X AVVIO ISTANZA AMM.RE DI SOSTEGNO A FAVORE SIG.RA ID 51 - LEGGE N 6 09012004 - DOTT. FRISON;11-01-2019;1601;0;354;1;Spese correnti;3;Acquisto di beni e servizi;1;Acquisto di beni;2;Altri beni di consumo;999;Altri beni e materiali di consumo n.a.c.;11-01-2019;
34;1;0;"5,88";"5,88";COMUNE DI BASSANO DEL GRAPPA;0000000000;RIMBORSO SPESE DI NOTIFICA;24-01-2019;273;0;123;1;Spese correnti;4;Trasferimenti correnti;1;Trasferimenti correnti a Amministrazioni Pubbliche;2;Trasferimenti correnti a Amministrazioni Locali;3;Trasferimenti correnti a Comuni;24-01-2019;
36;1;0;"1.461,60";"1.461,60";MARGHERITA SOCIETA' COOPERATIVA ONLUS;Z6B20BE3C9;SALDO Fatt.n. 307/E  del 31/12/2018 SERVIZIO DI SOSTEGNO SOCIO EDUCATIVO MESE DI DICEMBRE 2018;24-01-2019;1611;0;288;1;Spese correnti;3;Acquisto di beni e servizi;2;Acquisto di servizi;11;Prestazioni professionali e specialistiche;2;"Assistenza psicologica, sociale e religiosa";24-01-2019;
37;1;0;"3.450,00";"3.450,00";STT S.R.L.;ZD31EB0405;SALDO Fatt.n. 441/E  del 11/12/2018 CANONE DI ASSISTENZA E MANUTENZIONE SISTEMA IDI VIDEOSORVEGLIANZA SEDE MAROSTICA-PIANEZZE SECONDO SEMESTRE 2018;24-01-2019;506;0;194;1;Spese correnti;3;Acquisto di beni e servizi;2;Acquisto di servizi;9;Manutenzione ordinaria e riparazioni;4;Manutenzione ordinaria e riparazioni di impianti e macchinari;24-01-2019;
38;1;0;"549,00";"549,00";EGAF EDIZIONI SRL;Z49250808B;SALDO Fatt.n. 2019-V-VS2-490  del 03/01/2019 FORNITURA PRONTUARIO DELLE VIOLAZIONI DELLA CIRCOLAZIONE E CODICE DELLA STRADA 2019;24-01-2019;402;0;326;1;Spese correnti;3;Acquisto di beni e servizi;1;Acquisto di beni;1;"Giornali, riviste e pubblicazioni";2;Pubblicazioni;24-01-2019;
39;1;0;"1.890,00";"1.890,00";ADELANTE SOCIETA' COOPERATIVA SOCIALE ONLUS;Z3820C5D58;SALDO Fatt.n. 278/RS  del 31/12/2018 GESTIONE SPORTELLO INFORMALAVORO;24-01-2019;1760;0;2;1;Spese correnti;3;Acquisto di beni e servizi;2;Acquisto di servizi;11;Prestazioni professionali e specialistiche;2;"Assistenza psicologica, sociale e religiosa";24-01-2019;
40;1;0;"900,36";"3.230,56";STEMA S.R.L.;Z4B251CD76;SALDO Fatt.n. 737/E  del 12/11/2018 FORNITURA MATERIALE INFORMATICO;30-01-2019;2151;0;329;2;Spese in conto capitale;2;Investimenti fissi lordi e acquisto di terreni;1;Beni materiali;7;Hardware;2;Postazioni di lavoro;30-01-2019;
40;2;0;"2.330,20";"3.230,56";STEMA S.R.L.;Z4B251CD76;SALDO Fatt.n. 568/E  del 30/10/2018 FORNITURA MATERIALE INFORMATICO;30-01-2019;2151;0;329;2;Spese in conto capitale;2;Investimenti fissi lordi e acquisto di terreni;1;Beni materiali;7;Hardware;2;Postazioni di lavoro;30-01-2019;
41;1;0;"500,00";"500,00";CARPI LUCIA;Z52256AC8B;SALDO Fatt.n. 4  del 03/12/2018 RELAZIONE AL CONVEGNO "FELICEMENTE FUORI";30-01-2019;1604;0;296;1;Spese correnti;3;Acquisto di beni e servizi;2;Acquisto di servizi;15;Contratti di servizio pubblico;7;Contratti di servizio per la formazione dei cittadini;30-01-2019;
42;1;0;"58,40";"58,40";EDIZIONI CENTRO STUDI ERICKSON SPA - SEZIONE RIVISTE;Z9B2666183;SALDO Fatt.n. 0/51  del 10/01/2019 ABBONAMENTO RIVISTA "LAVORO SOCI" 2019;30-01-2019;1602;0;2;1;Spese correnti;3;Acquisto di beni e servizi;1;Acquisto di beni;1;"Giornali, riviste e pubblicazioni";1;Giornali e riviste;30-01-2019;
43;1;0;"283,37";"283,37";SERVIZI SOCIALI LA GOCCIA  S.C.S.A R.L.;Z3420590EA;SALDO Fatt.n. 534/PA  del 31/12/2018 PROGETTO VESTA MESE DI DICEMBRE 2018;30-01-2019;1660;0;364;1;Spese correnti;3;Acquisto di beni e servizi;2;Acquisto di servizi;11;Prestazioni professionali e specialistiche;2;"Assistenza psicologica, sociale e religiosa";30-01-2019;
44;1;0;"1.217,80";"1.217,80";MINISTERO DELLE INFRASTRUTTURE E DEI TRASPORTI;0000000000;ASSUNZIONE IMPEGNO DI SPESA PER IL PAGAMENTO CANONE ANNUO DIPARTIMENTO TRASPORTI TERRESTRI - ANNO 2019;30-01-2019;502;0;335;1;Spese correnti;3;Acquisto di beni e servizi;2;Acquisto di servizi;5;Utenze e canoni;3;Accesso a banche dati e a pubblicazioni on line;30-01-2019;
45;1;0;"1.689,98";"1.689,98";SERVIZI SOCIALI LA GOCCIA  S.C.S.A R.L.;610826186E;SALDO Fatt.n. 529/PA  del 31/12/2018 ASSISTENZA SOCIALE DICEMBRE 2018;30-01-2019;1610;0;30;1;Spese correnti;3;Acquisto di beni e servizi;2;Acquisto di servizi;15;Contratti di servizio pubblico;9;Contratti di servizio di assistenza sociale domiciliare;30-01-2019;
46;1;0;"3.200,01";"3.200,01";SERVIZI SOCIALI LA GOCCIA  S.C.S.A R.L.;610826186E;SALDO Fatt.n. 232/PA  del 26/06/2018 ASSISTENZA DOMICILIARE ANZIANI MAGGIO 2018;30-01-2019;1610;0;30;1;Spese correnti;3;Acquisto di beni e servizi;2;Acquisto di servizi;15;Contratti di servizio pubblico;9;Contratti di servizio di assistenza sociale domiciliare;30-01-2019;
47;1;0;"2.854,61";"2.854,61";SERVIZI SOCIALI LA GOCCIA  S.C.S.A R.L.;610826186E;SALDO Fatt.n. 528/PA  del 31/12/2018 ASSISTENZA DOMICILIARE ANZIANI DICEMBRE 2018;30-01-2019;1610;0;30;1;Spese correnti;3;Acquisto di beni e servizi;2;Acquisto di servizi;15;Contratti di servizio pubblico;9;Contratti di servizio di assistenza sociale domiciliare;30-01-2019;
48;1;0;"512,93";"512,93";ORTOPEDIA SANITARIA LOLATO DI LOLATO EMANUELE;ZE3263FE7A;SALDO Fatt.n. FE/184  del 20/12/2018 Ordine N. OV/534 del 20/12/2018. MATERIALE IGIENICO SANITARIO;30-01-2019;1704;0;392;1;Spese correnti;3;Acquisto di beni e servizi;2;Acquisto di servizi;15;Contratti di servizio pubblico;999;Altre spese per contratti di servizio pubblico;30-01-2019;
49;1;0;"3.703,13";"3.703,13";SERENISSIMA RISTORAZIONE S.P.A.;7288762CAB;SALDO Fatt.n. 08267/4  del 31/12/2018 FORNITURA PASTI DOMICILIARI MESE DI DICEMBRE 2018;30-01-2019;1704;0;33;1;Spese correnti;3;Acquisto di beni e servizi;2;Acquisto di servizi;15;Contratti di servizio pubblico;9;Contratti di servizio di assistenza sociale domiciliare;30-01-2019;
50;1;0;"8.282,20";"8.282,20";ADELANTE SOCIETA' COOPERATIVA SOCIALE ONLUS;6048086E71;ACCONTO Fatt.n. 279/ET  del 31/12/2018 Fattura di vendita;30-01-2019;1717;0;366;1;Spese correnti;3;Acquisto di beni e servizi;2;Acquisto di servizi;11;Prestazioni professionali e specialistiche;999;Altre prestazioni professionali e specialistiche n.a.c.;30-01-2019;
51;1;0;"1.396,04";"1.396,04";ADELANTE SOCIETA' COOPERATIVA SOCIALE ONLUS;6048086E71;SALDO Fatt.n. 279/ET  del 31/12/2018 Fattura di vendita;30-01-2019;1717;0;366;1;Spese correnti;3;Acquisto di beni e servizi;2;Acquisto di servizi;11;Prestazioni professionali e specialistiche;999;Altre prestazioni professionali e specialistiche n.a.c.;30-01-2019;
52;1;0;"46,36";"562,72";AUTOFFICINA ELETTRAUTO PIZZATO ENZO;ZAF1D259E7;SALDO Fatt.n. 8  del 25/01/2019 RIPARAZIONE AUTOVETTURA IN USO ALLA POLIZIA LOCALE TARGATA YA777AC;30-01-2019;233;0;416;1;Spese correnti;3;Acquisto di beni e servizi;2;Acquisto di servizi;9;Manutenzione ordinaria e riparazioni;1;"Manutenzione ordinaria e riparazioni di mezzi di trasporto ad uso civile, di sicurezza e ordine pubblico";30-01-2019;
52;2;0;"516,36";"562,72";AUTOFFICINA ELETTRAUTO PIZZATO ENZO;ZAF1D259E7;ACCONTO Fatt.n. 12  del 28/01/2019;30-01-2019;233;0;416;1;Spese correnti;3;Acquisto di beni e servizi;2;Acquisto di servizi;9;Manutenzione ordinaria e riparazioni;1;"Manutenzione ordinaria e riparazioni di mezzi di trasporto ad uso civile, di sicurezza e ordine pubblico";30-01-2019;
53;1;0;"190,07";"190,07";AUTOFFICINA ELETTRAUTO PIZZATO ENZO;ZAF1D259E7;SALDO Fatt.n. 12  del 28/01/2019;30-01-2019;233;0;117;1;Spese correnti;3;Acquisto di beni e servizi;2;Acquisto di servizi;9;Manutenzione ordinaria e riparazioni;1;"Manutenzione ordinaria e riparazioni di mezzi di trasporto ad uso civile, di sicurezza e ordine pubblico";30-01-2019;
54;1;0;"150,40";"824,12";OPEN SOFTWARE S.R.L.;ZBB2011AC7;SALDO Fatt.n. 006047  del 31/12/2018 ANTICIPO BOLLI;30-01-2019;510;0;298;1;Spese correnti;3;Acquisto di beni e servizi;2;Acquisto di servizi;16;Servizi amministrativi;999;Altre spese per servizi amministrativi;30-01-2019;
54;2;0;"188,92";"824,12";OPEN SOFTWARE S.R.L.;ZBB2011AC7;SALDO Fatt.n. 006046  del 31/12/2018 RENDICONTAZIONE VERBALI;30-01-2019;510;0;298;1;Spese correnti;3;Acquisto di beni e servizi;2;Acquisto di servizi;16;Servizi amministrativi;999;Altre spese per servizi amministrativi;30-01-2019;
54;3;0;"484,80";"824,12";OPEN SOFTWARE S.R.L.;ZBB2011AC7;SALDO Fatt.n. 006048  del 31/12/2018 ANTICIPAZIONE SPESE  PER VALORI BOLLATI;30-01-2019;510;0;298;1;Spese correnti;3;Acquisto di beni e servizi;2;Acquisto di servizi;16;Servizi amministrativi;999;Altre spese per servizi amministrativi;30-01-2019;
55;1;0;"52,73";"52,73";NIVI CREDIT S.R.L.;ZA21ECF1B7;ACCONTO Fatt.n. 9051E  del 31/12/2018;30-01-2019;509;0;200;1;Spese correnti;3;Acquisto di beni e servizi;2;Acquisto di servizi;16;Servizi amministrativi;999;Altre spese per servizi amministrativi;30-01-2019;
56;1;0;"57,31";"176,81";NIVI CREDIT S.R.L.;ZA21ECF1B7;SALDO Fatt.n. 9051E  del 31/12/2018;30-01-2019;509;0;200;1;Spese correnti;3;Acquisto di beni e servizi;2;Acquisto di servizi;16;Servizi amministrativi;999;Altre spese per servizi amministrativi;30-01-2019;
56;2;0;"119,50";"176,81";NIVI CREDIT S.R.L.;ZA21ECF1B7;SALDO Fatt.n. 9050E  del 31/12/2018 RIMBORSO SPESE PROCEDURA EMO;30-01-2019;509;0;200;1;Spese correnti;3;Acquisto di beni e servizi;2;Acquisto di servizi;16;Servizi amministrativi;999;Altre spese per servizi amministrativi;30-01-2019;
60;1;0;"5,88";"5,88";COMUNE DI NOVENTA PADOVANA;0000000000;RIMBORSO SPESE DI NOTIFICA ANNO 2018;06-02-2019;273;0;123;1;Spese correnti;4;Trasferimenti correnti;1;Trasferimenti correnti a Amministrazioni Pubbliche;2;Trasferimenti correnti a Amministrazioni Locali;3;Trasferimenti correnti a Comuni;06-02-2019;
61;1;0;"1.000,00";"1.000,00";QUESTA CITTA' - ASSOCIAZIONE DI CITTADINI VOLONTARI;Z432208F61;SPORTELLO SOCIALE "SPAZIO DONNA2 - LIQUIDAZIONE CONTRIBUTO ALL'ASSOCIAZIONE "QUESTA CITTA'" - ASSOCIAZIONE DI CITTADINI VOLONTARI" ONLUS;06-02-2019;1716;0;41;1;Spese correnti;3;Acquisto di beni e servizi;2;Acquisto di servizi;11;Prestazioni professionali e specialistiche;2;"Assistenza psicologica, sociale e religiosa";06-02-2019;
62;1;0;"500,00";"500,00";RIPAMONTI ENNIO;Z52256AC8B;"SALDO Fatt.n. PA 15/18  del 24/12/2018 ATTIVITA' DI DOCENZA NELL'AMBITO DEL PROGETTO INTERCOMUNALE ""CI VOGLIONO BAMBINI, BAMBINE, RAGAZZI E RAGAZZE PER FAR CRESCERE UNA CITTA'""";06-02-2019;1604;0;300;1;Spese correnti;3;Acquisto di beni e servizi;2;Acquisto di servizi;15;Contratti di servizio pubblico;7;Contratti di servizio per la formazione dei cittadini;06-02-2019;
63;1;0;"140,61";"140,61";ALFA ANTINCENDIO S.R.L.;ZA11F6B1B8;SALDO Fatt.n. 6  del 31/01/2019 CONTROLLO SEMESTRALE ESTINTORI;06-02-2019;236;0;239;1;Spese correnti;3;Acquisto di beni e servizi;2;Acquisto di servizi;9;Manutenzione ordinaria e riparazioni;5;Manutenzione ordinaria e riparazioni di attrezzature;06-02-2019;
64;1;0;"859,41";"859,41";ABACO SPA;Z5A1887E2F;ACCONTO Fatt.n. 2019140000236  del 09/01/2019;07-02-2019;202;0;198;1;Spese correnti;3;Acquisto di beni e servizi;2;Acquisto di servizi;3;Aggi di riscossione;999;Altri aggi di riscossione n.a.c.;07-02-2019;
65;1;0;"55,26";"55,26";ABACO SPA;Z5A1887E2F;ACCONTO Fatt.n. 2019140000236  del 09/01/2019;07-02-2019;202;0;333;1;Spese correnti;3;Acquisto di beni e servizi;2;Acquisto di servizi;3;Aggi di riscossione;999;Altri aggi di riscossione n.a.c.;07-02-2019;
66;1;0;"3.000,00";"3.000,00";ABACO SPA;Z5A1887E2F;ACCONTO Fatt.n. 2019140000236  del 09/01/2019;07-02-2019;202;0;425;1;Spese correnti;3;Acquisto di beni e servizi;2;Acquisto di servizi;3;Aggi di riscossione;999;Altri aggi di riscossione n.a.c.;07-02-2019;
67;1;0;"85,62";"85,62";ABACO SPA;Z5A1887E2F;SALDO Fatt.n. 2019140000236  del 09/01/2019;07-02-2019;509;0;18;1;Spese correnti;3;Acquisto di beni e servizi;2;Acquisto di servizi;16;Servizi amministrativi;999;Altre spese per servizi amministrativi;07-02-2019;
68;1;0;"226,10";"226,10";AUTOFFICINA ELETTRAUTO PIZZATO ENZO;ZAF1D259E7;SALDO Fatt.n. 14  del 31/01/2019 LAVORI DI SISTEMAZIONE AUTOVETTURA IN USO AI SERVIZI SOCIALI TARGATA CH886WJ;07-02-2019;233;0;16;1;Spese correnti;3;Acquisto di beni e servizi;2;Acquisto di servizi;9;Manutenzione ordinaria e riparazioni;1;"Manutenzione ordinaria e riparazioni di mezzi di trasporto ad uso civile, di sicurezza e ordine pubblico";07-02-2019;
69;1;0;"1.000,00";"1.000,00";PROVANTINI KATIA;Z52256AC8B;SALDO Fatt.n. 001000062018  del 18/10/2018 LIQUIDAZIONE INCARICO DI RELATORE AL CORSO "RAGAZZI IN ANSIA?" PRE E ADOLESCENTI ALLA RICERCA DI UN PROPRIO POSTO NEL MONDO;07-02-2019;1604;0;299;1;Spese correnti;3;Acquisto di beni e servizi;2;Acquisto di servizi;15;Contratti di servizio pubblico;7;Contratti di servizio per la formazione dei cittadini;07-02-2019;
70;1;0;"80,00";"80,00";PROSPETTIVE SOCIALI E SANITARIE - IST.PER LA RICERCA SO;Z282665FEE;SALDO Fatt.n. P0000052/PA  del 05/02/2019 ABBONAMENTO A "PROSPETTIVE SOCIALI E SANITARIE";07-02-2019;1602;0;4;1;Spese correnti;3;Acquisto di beni e servizi;1;Acquisto di beni;1;"Giornali, riviste e pubblicazioni";1;Giornali e riviste;07-02-2019;
72;1;0;"1.900,00";"1.900,00";POZZA BORTOLO;0000000000;LIQUIDAZIONE PER INCARICO PER ATTIVAZIONE E COORDINAMENTO MANUTENZIONE IMPIANTI ANTIGRANDINE CAMPAGNA SPERIMENTALE 2018 POZZA BORTOLO;13-02-2019;1410;0;364;1;Spese correnti;3;Acquisto di beni e servizi;2;Acquisto di servizi;99;Altri servizi;999;Altri servizi diversi n.a.c.;13-02-2019;
73;1;0;"800,00";"800,00";SCALCON BRUNO;0000000000;LIQUIDAZIONE PER INCARICO DI COLLABORAZIONE PER ATTIVAZIONE E MANUTENZIONE IMPIANTI ANTIGRANDINE CAMPAGNA 2018;13-02-2019;1410;0;363;1;Spese correnti;3;Acquisto di beni e servizi;2;Acquisto di servizi;99;Altri servizi;999;Altri servizi diversi n.a.c.;13-02-2019;
74;1;0;"4.759,00";"4.759,00";VENETO BENESSERE E CAMMINA ONLUS;Z6421FD624;"AFFIDAMENTO DIRETTO DELLA GESTIONE DELL'ATTIVITA' DEI GRUPPI DI CAMMINO DEL PROGETTO ""CAMMINA CAMMINA"" ALL'ASSOCIAZIONE VENETO BENESSERE CAMMINA ONLUS, VIA S. TOMMASO MORO 26, BASSANO DEL GRAPPA, C.F. 91029220240 - BIENNIO 2018/2019 - CIG Z6421FD624";13-02-2019;1913;0;29;1;Spese correnti;4;Trasferimenti correnti;4;Trasferimenti correnti a Istituzioni Sociali Private;1;Trasferimenti correnti a Istituzioni Sociali Private;1;Trasferimenti correnti a Istituzioni Sociali Private;13-02-2019;
75;1;0;"239,58";"239,58";MINISTERO DELLE INFRASTRUTTURE E DEI TRASPORTI;0000000000;LIQUIDAZIONE SPESE DI ACCESSO AGLI ARCHIVI DELLA MOTORIZZAZIONE CIVILE  AI SENSI ART. 10 COMME 6 DEL D.P.R. 28.09.1994 N. 634 - 4^  TRIMESTRE 2018;13-02-2019;502;0;334;1;Spese correnti;3;Acquisto di beni e servizi;2;Acquisto di servizi;5;Utenze e canoni;3;Accesso a banche dati e a pubblicazioni on line;13-02-2019;
76;1;0;"3.660,00";"3.660,00";SUSIO BRUNO;0000000000;SALDO Fatt.n. 92  del 03/01/2019 LIQUIDAZIONE PER INCARICO NUCLEO DI VALUTAZIONE - ANNO 2018;13-02-2019;50;0;180;1;Spese correnti;3;Acquisto di beni e servizi;2;Acquisto di servizi;1;Organi e incarichi istituzionali dell'amministrazione;8;"Compensi agli organi istituzionali di revisione, di controllo ed altri incarichi istituzionali dell'amministrazione";13-02-2019;
77;1;0;"105,13";"105,13";EDIT GRAF DI ISEPPI STEFANO;ZC2221E57A;SALDO Fatt.n. 2/45  del 29/01/2019 FORNITURA MATERIALE DI CANCELLERIA;13-02-2019;250;0;46;1;Spese correnti;3;Acquisto di beni e servizi;1;Acquisto di beni;2;Altri beni di consumo;1;"Carta, cancelleria e stampati";13-02-2019;
78;1;0;"337,00";"337,00";SCANAGATTA CARBURANTI SRL;Z0B2684063;SALDO Fatt.n. V303  del 31/01/2019 FORNITURA CARBURANTE AUTOMEZZI IN USO ALLA POLIZIA LOCALE MESE DI GENNAIO 2019+;13-02-2019;400;0;417;1;Spese correnti;3;Acquisto di beni e servizi;1;Acquisto di beni;2;Altri beni di consumo;2;"Carburanti, combustibili e lubrificanti";13-02-2019;
79;1;0;"716,59";"716,59";SCANAGATTA CARBURANTI SRL;Z0B2684063;SALDO Fatt.n. V301  del 31/01/2019 FORNITURA CARBURANTE AUTOMEZZI IN USO AI SERVIZI SOCIALI MESE DI GENNAIO 2019;13-02-2019;1599;0;418;1;Spese correnti;3;Acquisto di beni e servizi;1;Acquisto di beni;2;Altri beni di consumo;2;"Carburanti, combustibili e lubrificanti";13-02-2019;
80;1;0;"105,00";"105,00";AUTOSCUOLA SCALIGERA E NOVE E DI MICHELON DAVIDE & c.;Z4023B2401;SALDO Fatt.n. 99  del 07/02/2019 DUPLICATO CARTA CIRCOLAZIONE AUTOVEICOLO TARGATO CL380DH;14-02-2019;401;0;218;1;Spese correnti;3;Acquisto di beni e servizi;1;Acquisto di beni;2;Altri beni di consumo;14;Stampati specialistici;14-02-2019;
81;1;0;"431,88";"431,88";EDIT GRAF DI ISEPPI STEFANO;ZD326F35E1;SALDO Fatt.n. 2/90  del 07/02/2019 FORNITURA TESSERE PARCHEGGIO INVALIDIPERSONALIZZATA;14-02-2019;401;0;19;1;Spese correnti;3;Acquisto di beni e servizi;1;Acquisto di beni;2;Altri beni di consumo;1;"Carta, cancelleria e stampati";14-02-2019;
82;1;0;"24,16";"24,16";EDIT GRAF DI ISEPPI STEFANO;ZC2221E57A;SALDO Fatt.n. 2/1147  del 31/12/2018 FORNITURA CUSTODIA PER FOTOCAMERA PER POLIZIA LOCALE;14-02-2019;250;0;46;1;Spese correnti;3;Acquisto di beni e servizi;1;Acquisto di beni;2;Altri beni di consumo;1;"Carta, cancelleria e stampati";14-02-2019;
83;1;0;"44,07";"44,07";OMESSO NOMINATIVO NEL RISPETTO DELLA NORMATIVA SULLA PROTEZIONE DATI PERSONALI; ;"UTILIZZO FONDO SOCIALE A.T.E.R. PER ASSEGNATARI DI ALLOGGI E CONCORRENTI ALL'ASSEGNAZIONE IN GRAVI DIFFICOLTA' ECONOMICHE ACCONTO FS20180663, FS20180323.";14-02-2019;1903;0;290;1;Spese correnti;4;Trasferimenti correnti;2;Trasferimenti correnti a Famiglie;2;Interventi assistenziali;999;Altri assegni e sussidi assistenziali;14-02-2019;
84;1;0;"571,71";"571,71";OMESSO NOMINATIVO NEL RISPETTO DELLA NORMATIVA SULLA PROTEZIONE DATI PERSONALI; ;"FONDO SOCIALE A.T.E.R. PER ASSEGNATARI DI ALLOGGI E CONCORRENTI ALL'ASSEGNAZIONE IN GRAVI DIFFICOLTA' ECONOMICHE FS20180663, FS20180323. SALDO";14-02-2019;1903;0;340;1;Spese correnti;4;Trasferimenti correnti;2;Trasferimenti correnti a Famiglie;2;Interventi assistenziali;999;Altri assegni e sussidi assistenziali;14-02-2019;
85;1;0;"250,00";"250,00";OMESSO NOMINATIVO NEL RISPETTO DELLA NORMATIVA SULLA PROTEZIONE DATI PERSONALI; ;FONDO SOCIALE A.T.E.R. PER ASSEGNATARI DI ALLOGGI E CONCORRENTI ALL'ASSEGNAZIONE IN GRAVI DIFFICOLTA' ECONOMICHE FS20180466.;14-02-2019;1903;0;340;1;Spese correnti;4;Trasferimenti correnti;2;Trasferimenti correnti a Famiglie;2;Interventi assistenziali;999;Altri assegni e sussidi assistenziali;14-02-2019;
86;1;0;"500,00";"5.875,00";OMESSO NOMINATIVO NEL RISPETTO DELLA NORMATIVA SULLA PROTEZIONE DATI PERSONALI; ;INTERVENTI ECONOMICI A FAVORE DELLE FAMIGLIE CON PARTI TRIGEMELLARI E DELLE FAMIGLIE CON NUMERO DI FIGLI PARI O SUPERIORE A QUATTRO - ANNO 2018.;14-02-2019;1908;0;28;1;Spese correnti;4;Trasferimenti correnti;2;Trasferimenti correnti a Famiglie;2;Interventi assistenziali;999;Altri assegni e sussidi assistenziali;14-02-2019;
86;2;0;"125,00";"5.875,00";OMESSO NOMINATIVO NEL RISPETTO DELLA NORMATIVA SULLA PROTEZIONE DATI PERSONALI; ;INTERVENTI ECONOMICI A FAVORE DELLE FAMIGLIE CON PARTI TRIGEMELLARI E DELLE FAMIGLIE CON NUMERO DI FIGLI PARI O SUPERIORE A QUATTRO - ANNO 2018.;14-02-2019;1908;0;28;1;Spese correnti;4;Trasferimenti correnti;2;Trasferimenti correnti a Famiglie;2;Interventi assistenziali;999;Altri assegni e sussidi assistenziali;14-02-2019;
86;3;0;"500,00";"5.875,00";OMESSO NOMINATIVO NEL RISPETTO DELLA NORMATIVA SULLA PROTEZIONE DATI PERSONALI; ;INTERVENTI ECONOMICI A FAVORE DELLE FAMIGLIE CON PARTI TRIGEMELLARI E DELLE FAMIGLIE CON NUMERO DI FIGLI PARI O SUPERIORE A QUATTRO - ANNO 2018.;14-02-2019;1908;0;28;1;Spese correnti;4;Trasferimenti correnti;2;Trasferimenti correnti a Famiglie;2;Interventi assistenziali;999;Altri assegni e sussidi assistenziali;14-02-2019;
86;4;0;"250,00";"5.875,00";OMESSO NOMINATIVO NEL RISPETTO DELLA NORMATIVA SULLA PROTEZIONE DATI PERSONALI; ;INTERVENTI ECONOMICI A FAVORE DELLE FAMIGLIE CON PARTI TRIGEMELLARI E DELLE FAMIGLIE CON NUMERO DI FIGLI PARI O SUPERIORE A QUATTRO - ANNO 2018.;14-02-2019;1908;0;28;1;Spese correnti;4;Trasferimenti correnti;2;Trasferimenti correnti a Famiglie;2;Interventi assistenziali;999;Altri assegni e sussidi assistenziali;14-02-2019;
86;5;0;"500,00";"5.875,00";OMESSO NOMINATIVO NEL RISPETTO DELLA NORMATIVA SULLA PROTEZIONE DATI PERSONALI; ;INTERVENTI ECONOMICI A FAVORE DELLE FAMIGLIE CON PARTI TRIGEMELLARI E DELLE FAMIGLIE CON NUMERO DI FIGLI PARI O SUPERIORE A QUATTRO - ANNO 2018.;14-02-2019;1908;0;28;1;Spese correnti;4;Trasferimenti correnti;2;Trasferimenti correnti a Famiglie;2;Interventi assistenziali;999;Altri assegni e sussidi assistenziali;14-02-2019;
86;6;0;"500,00";"5.875,00";OMESSO NOMINATIVO NEL RISPETTO DELLA NORMATIVA SULLA PROTEZIONE DATI PERSONALI; ;INTERVENTI ECONOMICI A FAVORE DELLE FAMIGLIE CON PARTI TRIGEMELLARI E DELLE FAMIGLIE CON NUMERO DI FIGLI PARI O SUPERIORE A QUATTRO - ANNO 2018.;14-02-2019;1908;0;28;1;Spese correnti;4;Trasferimenti correnti;2;Trasferimenti correnti a Famiglie;2;Interventi assistenziali;999;Altri assegni e sussidi assistenziali;14-02-2019;
86;7;0;"500,00";"5.875,00";OMESSO NOMINATIVO NEL RISPETTO DELLA NORMATIVA SULLA PROTEZIONE DATI PERSONALI; ;INTERVENTI ECONOMICI A FAVORE DELLE FAMIGLIE CON PARTI TRIGEMELLARI E DELLE FAMIGLIE CON NUMERO DI FIGLI PARI O SUPERIORE A QUATTRO - ANNO 2018.;14-02-2019;1908;0;28;1;Spese correnti;4;Trasferimenti correnti;2;Trasferimenti correnti a Famiglie;2;Interventi assistenziali;999;Altri assegni e sussidi assistenziali;14-02-2019;
86;8;0;"625,00";"5.875,00";OMESSO NOMINATIVO NEL RISPETTO DELLA NORMATIVA SULLA PROTEZIONE DATI PERSONALI; ;INTERVENTI ECONOMICI A FAVORE DELLE FAMIGLIE CON PARTI TRIGEMELLARI E DELLE FAMIGLIE CON NUMERO DI FIGLI PARI O SUPERIORE A QUATTRO - ANNO 2018.;14-02-2019;1908;0;28;1;Spese correnti;4;Trasferimenti correnti;2;Trasferimenti correnti a Famiglie;2;Interventi assistenziali;999;Altri assegni e sussidi assistenziali;14-02-2019;
86;9;0;"250,00";"5.875,00";OMESSO NOMINATIVO NEL RISPETTO DELLA NORMATIVA SULLA PROTEZIONE DATI PERSONALI; ;INTERVENTI ECONOMICI A FAVORE DELLE FAMIGLIE CON PARTI TRIGEMELLARI E DELLE FAMIGLIE CON NUMERO DI FIGLI PARI O SUPERIORE A QUATTRO - ANNO 2018.;14-02-2019;1908;0;28;1;Spese correnti;4;Trasferimenti correnti;2;Trasferimenti correnti a Famiglie;2;Interventi assistenziali;999;Altri assegni e sussidi assistenziali;14-02-2019;
86;10;0;"500,00";"5.875,00";OMESSO NOMINATIVO NEL RISPETTO DELLA NORMATIVA SULLA PROTEZIONE DATI PERSONALI; ;INTERVENTI ECONOMICI A FAVORE DELLE FAMIGLIE CON PARTI TRIGEMELLARI E DELLE FAMIGLIE CON NUMERO DI FIGLI PARI O SUPERIORE A QUATTRO - ANNO 2018.;14-02-2019;1908;0;28;1;Spese correnti;4;Trasferimenti correnti;2;Trasferimenti correnti a Famiglie;2;Interventi assistenziali;999;Altri assegni e sussidi assistenziali;14-02-2019;
86;11;0;"750,00";"5.875,00";OMESSO NOMINATIVO NEL RISPETTO DELLA NORMATIVA SULLA PROTEZIONE DATI PERSONALI; ;INTERVENTI ECONOMICI A FAVORE DELLE FAMIGLIE CON PARTI TRIGEMELLARI E DELLE FAMIGLIE CON NUMERO DI FIGLI PARI O SUPERIORE A QUATTRO - ANNO 2018.;14-02-2019;1908;0;28;1;Spese correnti;4;Trasferimenti correnti;2;Trasferimenti correnti a Famiglie;2;Interventi assistenziali;999;Altri assegni e sussidi assistenziali;14-02-2019;
86;12;0;"375,00";"5.875,00";OMESSO NOMINATIVO NEL RISPETTO DELLA NORMATIVA SULLA PROTEZIONE DATI PERSONALI; ;INTERVENTI ECONOMICI A FAVORE DELLE FAMIGLIE CON PARTI TRIGEMELLARI E DELLE FAMIGLIE CON NUMERO DI FIGLI PARI O SUPERIORE A QUATTRO - ANNO 2018.;14-02-2019;1908;0;28;1;Spese correnti;4;Trasferimenti correnti;2;Trasferimenti correnti a Famiglie;2;Interventi assistenziali;999;Altri assegni e sussidi assistenziali;14-02-2019;
86;13;0;"500,00";"5.875,00";OMESSO NOMINATIVO NEL RISPETTO DELLA NORMATIVA SULLA PROTEZIONE DATI PERSONALI; ;INTERVENTI ECONOMICI A FAVORE DELLE FAMIGLIE CON PARTI TRIGEMELLARI E DELLE FAMIGLIE CON NUMERO DI FIGLI PARI O SUPERIORE A QUATTRO - ANNO 2018.;14-02-2019;1908;0;28;1;Spese correnti;4;Trasferimenti correnti;2;Trasferimenti correnti a Famiglie;2;Interventi assistenziali;999;Altri assegni e sussidi assistenziali;14-02-2019;
90;1;0;"17,64";"17,64";COMUNE DI TRIESTE;0000000000;RIMBORSO SPESE DI NOTIFICA;20-02-2019;273;0;123;1;Spese correnti;4;Trasferimenti correnti;1;Trasferimenti correnti a Amministrazioni Pubbliche;2;Trasferimenti correnti a Amministrazioni Locali;3;Trasferimenti correnti a Comuni;20-02-2019;
91;1;0;"847,45";"847,45";COMUNE DI MAROSTICA; ;RIMBORSO AL COMUNE DI MAROSTICA DI SPESE POSTALI SOSTENUTE PER CONTO DELL'UNIONE MONTANA MAROSTICENSE ANNO 2018. LIQUIDAZIONE.;20-02-2019;267;0;361;1;Spese correnti;3;Acquisto di beni e servizi;2;Acquisto di servizi;16;Servizi amministrativi;2;Spese postali;20-02-2019;
92;1;0;"1.200,00";"1.200,00";POSTE ITALIANE SPA; ;SPESE TENUTA CCP SERVIZIO TESORERIA E CONTRAVVENZIONI ANNO 2018;20-02-2019;200;0;105;1;Spese correnti;3;Acquisto di beni e servizi;2;Acquisto di servizi;17;Servizi finanziari;2;Oneri per servizio di tesoreria;20-02-2019;
93;1;0;"157,96";"462,72";POSTE ITALIANE SPA; ;SPESE TENUTA CONTO CP SERVIZIO CONTRAVVENZIONI ANNO 2018;20-02-2019;200;0;33;1;Spese correnti;3;Acquisto di beni e servizi;2;Acquisto di servizi;17;Servizi finanziari;2;Oneri per servizio di tesoreria;20-02-2019;
93;2;0;"304,76";"462,72";POSTE ITALIANE SPA; ;SPESE TENUTA CONTO CP SERVIZIO TESORERIA  ANNO 2018;20-02-2019;200;0;33;1;Spese correnti;3;Acquisto di beni e servizi;2;Acquisto di servizi;17;Servizi finanziari;2;Oneri per servizio di tesoreria;20-02-2019;
94;1;0;"2.562,00";"2.562,00";M6 SRL;Z79241B62A;SALDO Fatt.n. 4/FE  del 13/02/2019 INTEGRAZIONE PIANI DI PROTEZIONE CIVILE DEI COMUNI DI MAROSTICA PIANEZZE E SCHIAVON;21-02-2019;1400;0;265;1;Spese correnti;3;Acquisto di beni e servizi;2;Acquisto di servizi;99;Altri servizi;999;Altri servizi diversi n.a.c.;21-02-2019;
95;1;0;"75,01";"189,35";NIVI CREDIT S.R.L.;ZA21ECF1B7;SALDO Fatt.n. 624E  del 31/01/2019 FATTURA CORRISPETTIVI SU PT;21-02-2019;509;0;200;1;Spese correnti;3;Acquisto di beni e servizi;2;Acquisto di servizi;16;Servizi amministrativi;999;Altre spese per servizi amministrativi;21-02-2019;
95;2;0;"114,34";"189,35";NIVI CREDIT S.R.L.;ZA21ECF1B7;SALDO Fatt.n. 623E  del 31/01/2019 RIMBORSO SPESE PROCEDURA EMO;21-02-2019;509;0;200;1;Spese correnti;3;Acquisto di beni e servizi;2;Acquisto di servizi;16;Servizi amministrativi;999;Altre spese per servizi amministrativi;21-02-2019;
96;1;0;"161,59";"698,39";OPEN SOFTWARE S.R.L.;ZBB2011AC7;SALDO Fatt.n. 000274  del 31/01/2019 FATTURA RENDICONTAZIONE STAMPA ED IMBUSTAMENTO VERBALI.;21-02-2019;510;0;298;1;Spese correnti;3;Acquisto di beni e servizi;2;Acquisto di servizi;16;Servizi amministrativi;999;Altre spese per servizi amministrativi;21-02-2019;
96;2;0;"242,40";"698,39";OPEN SOFTWARE S.R.L.;ZBB2011AC7;SALDO Fatt.n. 000275  del 31/01/2019 ANTICIPO BOLLI POSTALI;21-02-2019;510;0;298;1;Spese correnti;3;Acquisto di beni e servizi;2;Acquisto di servizi;16;Servizi amministrativi;999;Altre spese per servizi amministrativi;21-02-2019;
96;3;0;"294,40";"698,39";OPEN SOFTWARE S.R.L.;ZBB2011AC7;SALDO Fatt.n. 000276  del 31/01/2019 ANTICIPAZIONE SPESE;21-02-2019;510;0;298;1;Spese correnti;3;Acquisto di beni e servizi;2;Acquisto di servizi;16;Servizi amministrativi;999;Altre spese per servizi amministrativi;21-02-2019;
97;1;0;"203,25";"203,25";GIURIATO S.R.L.;ZBE2555222;SALDO Fatt.n. 64/10  del 31/12/2018 PRESTAZIONE CON MINIESCAVATORE;21-02-2019;1401;0;336;1;Spese correnti;3;Acquisto di beni e servizi;2;Acquisto di servizi;7;Utilizzo di beni di terzi;8;Noleggi di impianti e macchinari;21-02-2019;
98;1;0;"3.538,00";"3.538,00";CIW SRL;ZE62635C87;"SALDO Fatt.n. 11  del 04/02/2019 Fornitura Procedure WEB CIW-Gestione ICI/IMU, CVD-Consultazione Banche dati SISTER e SIATEL moduli standard, SWLinkAnagrafe e CIW/Gestione TARES/TaRi+TaSIcontratto 20192021 Competenza anno 2019";21-02-2019;264;0;405;1;Spese correnti;3;Acquisto di beni e servizi;2;Acquisto di servizi;19;Servizi informatici e di telecomunicazioni;1;Gestione e manutenzione applicazioni;21-02-2019;
99;1;0;"1.839,60";"1.839,60";MARGHERITA SOCIETA' COOPERATIVA ONLUS;Z6B20BE3C9;SALDO Fatt.n. 11/E  del 31/01/2019 SERVIZIO DI SOSTEGNO SOCIO-EDUCATIVO MESE DI GENNAIO 2019;21-02-2019;1611;0;288;1;Spese correnti;3;Acquisto di beni e servizi;2;Acquisto di servizi;11;Prestazioni professionali e specialistiche;2;"Assistenza psicologica, sociale e religiosa";21-02-2019;
100;1;0;"243,83";"243,83";AUTOFFICINA ELETTRAUTO PIZZATO ENZO;ZAF1D259E7;SALDO Fatt.n. 25  del 19/02/2019 REEVISIONE AUTOVETTURA IN USO AI SERVIZI SOCIALI TARGATA DT789CH;21-02-2019;233;0;16;1;Spese correnti;3;Acquisto di beni e servizi;2;Acquisto di servizi;9;Manutenzione ordinaria e riparazioni;1;"Manutenzione ordinaria e riparazioni di mezzi di trasporto ad uso civile, di sicurezza e ordine pubblico";21-02-2019;
101;1;0;"500,00";"500,00";GIES S.R.L.;Z9A235C136;ACCONTO Fatt.n. 1665/A  del 10/12/2018 SERVIZIO DI COMPILAZIONE FILES BENI IMMOBILI ANNO 2017;25-02-2019;264;0;173;1;Spese correnti;3;Acquisto di beni e servizi;2;Acquisto di servizi;19;Servizi informatici e di telecomunicazioni;1;Gestione e manutenzione applicazioni;25-02-2019;
102;1;0;"1.375,00";"1.375,00";GIES S.R.L.;Z712658E2D;ACCONTO Fatt.n. 188/A  del 22/01/2019 SERVIZI DI AGGIORNAMENTO  BANCA DATI  PATRIMONIO;27-02-2019;264;0;403;1;Spese correnti;3;Acquisto di beni e servizi;2;Acquisto di servizi;19;Servizi informatici e di telecomunicazioni;1;Gestione e manutenzione applicazioni;27-02-2019;
103;1;0;"1.200,00";"1.200,00";GIES S.R.L.;Z712658E2D;ACCONTO Fatt.n. 189/A  del 22/01/2019 SERVIZIO DI HOSTING BABYLON DAL 01.01.19 AL 30.04.2020;27-02-2019;264;0;403;1;Spese correnti;3;Acquisto di beni e servizi;2;Acquisto di servizi;19;Servizi informatici e di telecomunicazioni;1;Gestione e manutenzione applicazioni;27-02-2019;
104;1;0;"10.614,00";"10.614,00";STRADE TRAFFICO SICUREZZA S.R.L.;Z19216493A;SALDO Fatt.n. 3/40  del 09/08/2018 MANUTENZIONE IMPLEMENTATIVASISTEMA STSGUARD CON AGGIORNAMENTO;27-02-2019;506;0;418;1;Spese correnti;3;Acquisto di beni e servizi;2;Acquisto di servizi;9;Manutenzione ordinaria e riparazioni;4;Manutenzione ordinaria e riparazioni di impianti e macchinari;27-02-2019;
105;1;0;"309,92";"309,92";TELECOM ITALIA S.P.A. - (TIM S.P.A.);0000000000;SALDO Fatt.n. 8E00144341  del 06/02/2019 IDENTIFICATIVO CONTRATTO 042472144 - 2BIM 2019;28-02-2019;231;0;140;1;Spese correnti;3;Acquisto di beni e servizi;2;Acquisto di servizi;5;Utenze e canoni;1;Telefonia fissa;28-02-2019;
106;1;0;"5,88";"5,88";CITTA' DI DESENZANO SUL GARDA;0000000000;RIMBORSO SPESE DI NOTIFICA;28-02-2019;273;0;123;1;Spese correnti;4;Trasferimenti correnti;1;Trasferimenti correnti a Amministrazioni Pubbliche;2;Trasferimenti correnti a Amministrazioni Locali;3;Trasferimenti correnti a Comuni;28-02-2019;
107;1;0;"3.922,25";"3.922,25";SERENISSIMA RISTORAZIONE S.P.A.;7288762CAB;SALDO Fatt.n. 00585/4  del 31/01/2019 FORNITURA PASTI A DOMICILIO MESE DI GENNAIO 2019;28-02-2019;1704;0;33;1;Spese correnti;3;Acquisto di beni e servizi;2;Acquisto di servizi;15;Contratti di servizio pubblico;9;Contratti di servizio di assistenza sociale domiciliare;28-02-2019;
108;1;0;"109,80";"109,80";SHARP ELECTRONICS (ITALIA) SPA;ZCD234848A;SALDO Fatt.n. 7719000624  del 31/01/2019 CANONE MX4112/4140 60 MESI;28-02-2019;264;0;166;1;Spese correnti;3;Acquisto di beni e servizi;2;Acquisto di servizi;19;Servizi informatici e di telecomunicazioni;7;Servizi di gestione documentale;28-02-2019;
112;1;0;"2.800,00";"2.800,00";ASSOCIAZIONE SOTTOICENTO; ;LIQUIDAZIONE CONTRIBUTO PER LA GESTIONE DELLE ATTIVITA' RICREATIVO-CULTURALI DEL CENTRO DIURNO RIVOLTE ALLA POPOLAZIONE ANZIANA. ACONTO CONVENZIONE DEL 18/01/2019;08-03-2019;1702;0;45;1;Spese correnti;3;Acquisto di beni e servizi;2;Acquisto di servizi;99;Altri servizi;999;Altri servizi diversi n.a.c.;08-03-2019;
113;1;0;"2.123,28";"2.123,28";COM METODI S.P.A.;ZDD1A11CA6;ACCONTO Fatt.n. FV18-1814  del 25/06/2018 SERVIZI TECNICI PERIODO 01/10/2017-31/12/2017.;08-03-2019;259;0;156;1;Spese correnti;3;Acquisto di beni e servizi;2;Acquisto di servizi;4;Acquisto di servizi per formazione e addestramento del personale dell'ente;4;Acquisto di servizi per formazione obbligatoria;08-03-2019;
114;1;0;"-404,89";"873,17";COM METODI S.P.A.;ZDD1A11CA6;SALDO Fatt.n. FV19-0005  del 11/01/2019 STORNO PARZIALE FATTURA FV18-1814 DEL 25/06/2018;08-03-2019;259;0;156;1;Spese correnti;3;Acquisto di beni e servizi;2;Acquisto di servizi;4;Acquisto di servizi per formazione e addestramento del personale dell'ente;4;Acquisto di servizi per formazione obbligatoria;08-03-2019;
114;2;0;"1.278,06";"873,17";COM METODI S.P.A.;ZDD1A11CA6;SALDO Fatt.n. FV18-1814  del 25/06/2018 SERVIZI TECNICI PERIODO 01/10/2017-31/12/2017.;08-03-2019;259;0;156;1;Spese correnti;3;Acquisto di beni e servizi;2;Acquisto di servizi;4;Acquisto di servizi per formazione e addestramento del personale dell'ente;4;Acquisto di servizi per formazione obbligatoria;08-03-2019;
115;1;0;"872,30";"872,30";SISTEMICA SRL;Z491CC2C5E;SALDO Fatt.n. 8  del 31/01/2019 CONSULENZA E SUPPORTO SISTEMISTICO;08-03-2019;264;0;414;1;Spese correnti;3;Acquisto di beni e servizi;2;Acquisto di servizi;19;Servizi informatici e di telecomunicazioni;1;Gestione e manutenzione applicazioni;08-03-2019;
116;1;0;"3.660,00";"3.660,00";EUGANEA INNOVAZIONE S.R.L.;Z2523B0532;"SALDO Fatt.n. 17  del 31/01/2019 SALDO SU ADEMPIMENTI GDPR, REGOLAMENTO EUROPEO 679/2016";08-03-2019;258;0;232;1;Spese correnti;3;Acquisto di beni e servizi;2;Acquisto di servizi;99;Altri servizi;999;Altri servizi diversi n.a.c.;08-03-2019;
117;1;0;"408,70";"408,70";SOLUZIONE UFFICIO S.R.L.;Z0418F1DC4;SALDO Fatt.n. 242/E  del 05/02/2019 CANONE NOLEGGIO PRIMO TRIMESTRE 2019;08-03-2019;264;0;87;1;Spese correnti;3;Acquisto di beni e servizi;2;Acquisto di servizi;19;Servizi informatici e di telecomunicazioni;9;Servizi per le postazioni di lavoro e relativa manutenzione;08-03-2019;
118;1;0;"96,33";"240,55";EDIT GRAF DI ISEPPI STEFANO;ZC2221E57A;SALDO Fatt.n. 2/145  del 20/02/2019 FORNITURA DI CANCELLERIA VARIA E RISME CARTA;08-03-2019;250;0;46;1;Spese correnti;3;Acquisto di beni e servizi;1;Acquisto di beni;2;Altri beni di consumo;1;"Carta, cancelleria e stampati";08-03-2019;
118;2;0;"144,22";"240,55";EDIT GRAF DI ISEPPI STEFANO;ZC2221E57A;SALDO Fatt.n. 2/127  del 19/02/2019 FORNITURA DI CANCELLERIA VARIA E RISME CARTA;08-03-2019;250;0;46;1;Spese correnti;3;Acquisto di beni e servizi;1;Acquisto di beni;2;Altri beni di consumo;1;"Carta, cancelleria e stampati";08-03-2019;
119;1;0;"491,31";"491,31";SCANAGATTA CARBURANTI SRL;Z0B2684063;SALDO Fatt.n. V3  4  del 28/02/2019 FORNITURA CARBURANTE AI MEZZI IN USO AI SERVIZI SOCIALI MESE DI FEBBRAIO 2019;08-03-2019;1599;0;418;1;Spese correnti;3;Acquisto di beni e servizi;1;Acquisto di beni;2;Altri beni di consumo;2;"Carburanti, combustibili e lubrificanti";08-03-2019;
120;1;0;"387,30";"387,30";SCANAGATTA CARBURANTI SRL;Z0B2684063;SALDO Fatt.n. V3  5  del 28/02/2019 FORNITURA CARBURANTE AI MEZZI IN USO ALLA POLIZIA LOCALE MESE DI FEBBRAIO 2019;08-03-2019;400;0;417;1;Spese correnti;3;Acquisto di beni e servizi;1;Acquisto di beni;2;Altri beni di consumo;2;"Carburanti, combustibili e lubrificanti";08-03-2019;
121;1;0;"788,38";"788,38";CARROZZERIA SPRINT CAR S.A.S.;Z7B1D25A98;ACCONTO Fatt.n. 8  del 22/02/2019 SISTEMAZIONE CARROZZERIA AUTOVETTURA IN USO AI SERVIZI SOCIALI FIAT PUNTO TARGATA DT789CH;08-03-2019;233;0;18;1;Spese correnti;3;Acquisto di beni e servizi;2;Acquisto di servizi;9;Manutenzione ordinaria e riparazioni;1;"Manutenzione ordinaria e riparazioni di mezzi di trasporto ad uso civile, di sicurezza e ordine pubblico";08-03-2019;
122;1;0;"185,18";"185,18";CARROZZERIA SPRINT CAR S.A.S.;Z5826B1714;SALDO Fatt.n. 8  del 22/02/2019 SISTEMAZIONE CARROZZERIA AUTOVETTURA IN USO AI SERVIZI SOCIALI FIAT PUNTO TARGATA DT789CH;08-03-2019;233;0;5;1;Spese correnti;3;Acquisto di beni e servizi;2;Acquisto di servizi;9;Manutenzione ordinaria e riparazioni;1;"Manutenzione ordinaria e riparazioni di mezzi di trasporto ad uso civile, di sicurezza e ordine pubblico";08-03-2019;
123;1;0;"117,67";"117,67";AUTOFFICINA ELETTRAUTO PIZZATO ENZO;ZAF1D259E7;ACCONTO Fatt.n. 38  del 28/02/2019;08-03-2019;233;0;16;1;Spese correnti;3;Acquisto di beni e servizi;2;Acquisto di servizi;9;Manutenzione ordinaria e riparazioni;1;"Manutenzione ordinaria e riparazioni di mezzi di trasporto ad uso civile, di sicurezza e ordine pubblico";08-03-2019;
124;1;0;"8,98";"86,57";AUTOFFICINA ELETTRAUTO PIZZATO ENZO;ZAF1D259E7;SALDO Fatt.n. 38  del 28/02/2019;08-03-2019;233;0;416;1;Spese correnti;3;Acquisto di beni e servizi;2;Acquisto di servizi;9;Manutenzione ordinaria e riparazioni;1;"Manutenzione ordinaria e riparazioni di mezzi di trasporto ad uso civile, di sicurezza e ordine pubblico";08-03-2019;
124;2;0;"77,59";"86,57";AUTOFFICINA ELETTRAUTO PIZZATO ENZO;ZAF1D259E7;SALDO Fatt.n. 39  del 28/02/2019 MANUTENZIONE FIAT DUCATO TARGATO DK832MT;08-03-2019;233;0;416;1;Spese correnti;3;Acquisto di beni e servizi;2;Acquisto di servizi;9;Manutenzione ordinaria e riparazioni;1;"Manutenzione ordinaria e riparazioni di mezzi di trasporto ad uso civile, di sicurezza e ordine pubblico";08-03-2019;
125;1;0;"19.096,73";"19.096,73";COMUNE DI MAROSTICA; ;RIMBORSO AL COMUNE DI MAROSTICA DELLE SPESE SOSTENUTE PER L'USO DEI LOCALI DI VIA IV NOVEMBRE (OPIFICIO) NELL'ANNO 2018.;08-03-2019;223;0;50;1;Spese correnti;3;Acquisto di beni e servizi;2;Acquisto di servizi;5;Utenze e canoni;7;Spese di condominio;08-03-2019;
126;1;0;"500,00";"500,00";FEDER. ARTIGIANI IMPRENDITORI VICENTINI;0000000000;ACCONTO Fatt.n. 8 PA  del 04/03/2019 RECUPERO SPESE CONDOMINIALI ANNO 2018;13-03-2019;224;0;447;1;Spese correnti;3;Acquisto di beni e servizi;2;Acquisto di servizi;5;Utenze e canoni;7;Spese di condominio;13-03-2019;
127;1;0;"698,64";"698,64";FEDER. ARTIGIANI IMPRENDITORI VICENTINI;0000000000;SALDO Fatt.n. 8 PA  del 04/03/2019 RECUPERO SPESE CONDOMINIALI ANNO 2018;13-03-2019;236;0;444;1;Spese correnti;3;Acquisto di beni e servizi;2;Acquisto di servizi;9;Manutenzione ordinaria e riparazioni;8;Manutenzione ordinaria e riparazioni di beni immobili;13-03-2019;
128;1;0;"102,00";"102,00";MAGGIOLI SPA;ZF92665F65;SALDO Fatt.n. 0002107909  del 28/02/2019 RINNOVO ABBONAMENTO RIVISTA WELFARE OGGI-PDF;13-03-2019;1602;0;3;1;Spese correnti;3;Acquisto di beni e servizi;1;Acquisto di beni;1;"Giornali, riviste e pubblicazioni";1;Giornali e riviste;13-03-2019;
129;1;0;"272,94";"272,94";CECCATO AUTOMOBILI S.P.A.;ZB3263FE49;SALDO Fatt.n. 822 / 24515  del 05/02/2019 FORNITURA E CODIFICA CHIAVE PER FIAT DUCATO Targa: DK832MT IN USO AI SERVIZI SOCIALI;13-03-2019;1704;0;393;1;Spese correnti;3;Acquisto di beni e servizi;2;Acquisto di servizi;15;Contratti di servizio pubblico;999;Altre spese per contratti di servizio pubblico;13-03-2019;
130;1;0;"35,99";"35,99";AUTOLAVAGGIO MILLE LUNE DI COSTACURTA SIMONE;Z9C1E581FD;SALDO Fatt.n. FATTPA 1_19  del 28/02/2019 LAVAGGIO MANUALE INTERNO ED ESTERNO AUTO IN USO AI SERVIZI SOCIALI TARGATI CH507XL E EG651WY;13-03-2019;233;0;385;1;Spese correnti;3;Acquisto di beni e servizi;2;Acquisto di servizi;9;Manutenzione ordinaria e riparazioni;1;"Manutenzione ordinaria e riparazioni di mezzi di trasporto ad uso civile, di sicurezza e ordine pubblico";13-03-2019;
131;1;0;"814,06";"814,06";AUTOFFICINA ELETTRAUTO PIZZATO ENZO;ZAF1D259E7;SALDO Fatt.n. 37  del 28/02/2019 MANUTENZIONE AUTOVETTURA IN USO ALLA POLIZIA LOCALE TARGATA YA777AC;13-03-2019;233;0;416;1;Spese correnti;3;Acquisto di beni e servizi;2;Acquisto di servizi;9;Manutenzione ordinaria e riparazioni;1;"Manutenzione ordinaria e riparazioni di mezzi di trasporto ad uso civile, di sicurezza e ordine pubblico";13-03-2019;
132;1;0;"720,00";"720,00";AMESCI;Z8D25F8B86;SALDO Fatt.n. FATTPA 94_19  del 18/02/2019 SERVIZIO CIVILE. PRIMO VERSAMENTO PER PREDISPOSIZIONE E CONSEGNA PROGETTO PER N. 3 VOLONTARI;13-03-2019;27;0;365;1;Spese correnti;3;Acquisto di beni e servizi;2;Acquisto di servizi;11;Prestazioni professionali e specialistiche;999;Altre prestazioni professionali e specialistiche n.a.c.;13-03-2019;
133;1;0;"5.917,00";"5.917,00";STUDIO STORTI S.R.L.;ZAA276D0D3;SALDO Fatt.n. 184/2019  del 12/03/2019 SERVIZIO DI ASSISTENZA E MANUTENZIONE ZIMBRA CLOUD ANNO 2019;13-03-2019;264;0;51;1;Spese correnti;3;Acquisto di beni e servizi;2;Acquisto di servizi;19;Servizi informatici e di telecomunicazioni;1;Gestione e manutenzione applicazioni;13-03-2019;
134;1;0;"720,00";"9.720,00";OMESSO NOMINATIVO NEL RISPETTO DELLA NORMATIVA SULLA PROTEZIONE DATI PERSONALI; ;LIQUIDAZIONE ICDB (IMPEGNATIVE DI CURA DOMICILIARE DI TIPO B) 2^ SEMESTRE 2018 E ICDM (DI TIPO M) 4^ TRIMESTRE 2018;14-03-2019;1900;0;49;1;Spese correnti;4;Trasferimenti correnti;2;Trasferimenti correnti a Famiglie;2;Interventi assistenziali;999;Altri assegni e sussidi assistenziali;14-03-2019;
134;2;0;"480,00";"9.720,00";OMESSO NOMINATIVO NEL RISPETTO DELLA NORMATIVA SULLA PROTEZIONE DATI PERSONALI; ;LIQUIDAZIONE ICDB (IMPEGNATIVE DI CURA DOMICILIARE DI TIPO B) 2^ SEMESTRE 2018 E ICDM (DI TIPO M) 4^ TRIMESTRE 2018;14-03-2019;1900;0;49;1;Spese correnti;4;Trasferimenti correnti;2;Trasferimenti correnti a Famiglie;2;Interventi assistenziali;999;Altri assegni e sussidi assistenziali;14-03-2019;
134;3;0;"480,00";"9.720,00";OMESSO NOMINATIVO NEL RISPETTO DELLA NORMATIVA SULLA PROTEZIONE DATI PERSONALI; ;LIQUIDAZIONE ICDB (IMPEGNATIVE DI CURA DOMICILIARE DI TIPO B) 2^ SEMESTRE 2018 E ICDM (DI TIPO M) 4^ TRIMESTRE 2018;14-03-2019;1900;0;49;1;Spese correnti;4;Trasferimenti correnti;2;Trasferimenti correnti a Famiglie;2;Interventi assistenziali;999;Altri assegni e sussidi assistenziali;14-03-2019;
134;4;0;"120,00";"9.720,00";OMESSO NOMINATIVO NEL RISPETTO DELLA NORMATIVA SULLA PROTEZIONE DATI PERSONALI; ;LIQUIDAZIONE ICDB (IMPEGNATIVE DI CURA DOMICILIARE DI TIPO B) 2^ SEMESTRE 2018 E ICDM (DI TIPO M) 4^ TRIMESTRE 2018;14-03-2019;1900;0;49;1;Spese correnti;4;Trasferimenti correnti;2;Trasferimenti correnti a Famiglie;2;Interventi assistenziali;999;Altri assegni e sussidi assistenziali;14-03-2019;
134;5;0;"1.200,00";"9.720,00";OMESSO NOMINATIVO NEL RISPETTO DELLA NORMATIVA SULLA PROTEZIONE DATI PERSONALI; ;LIQUIDAZIONE ICDB (IMPEGNATIVE DI CURA DOMICILIARE DI TIPO B) 2^ SEMESTRE 2018 E ICDM (DI TIPO M) 4^ TRIMESTRE 2018;14-03-2019;1900;0;49;1;Spese correnti;4;Trasferimenti correnti;2;Trasferimenti correnti a Famiglie;2;Interventi assistenziali;999;Altri assegni e sussidi assistenziali;14-03-2019;
134;6;0;"720,00";"9.720,00";OMESSO NOMINATIVO NEL RISPETTO DELLA NORMATIVA SULLA PROTEZIONE DATI PERSONALI; ;LIQUIDAZIONE ICDB (IMPEGNATIVE DI CURA DOMICILIARE DI TIPO B) 2^ SEMESTRE 2018 E ICDM (DI TIPO M) 4^ TRIMESTRE 2018;14-03-2019;1900;0;49;1;Spese correnti;4;Trasferimenti correnti;2;Trasferimenti correnti a Famiglie;2;Interventi assistenziali;999;Altri assegni e sussidi assistenziali;14-03-2019;
134;7;0;"720,00";"9.720,00";OMESSO NOMINATIVO NEL RISPETTO DELLA NORMATIVA SULLA PROTEZIONE DATI PERSONALI; ;LIQUIDAZIONE ICDB (IMPEGNATIVE DI CURA DOMICILIARE DI TIPO B) 2^ SEMESTRE 2018 E ICDM (DI TIPO M) 4^ TRIMESTRE 2018;14-03-2019;1900;0;49;1;Spese correnti;4;Trasferimenti correnti;2;Trasferimenti correnti a Famiglie;2;Interventi assistenziali;999;Altri assegni e sussidi assistenziali;14-03-2019;
134;8;0;"720,00";"9.720,00";OMESSO NOMINATIVO NEL RISPETTO DELLA NORMATIVA SULLA PROTEZIONE DATI PERSONALI; ;LIQUIDAZIONE ICDB (IMPEGNATIVE DI CURA DOMICILIARE DI TIPO B) 2^ SEMESTRE 2018 E ICDM (DI TIPO M) 4^ TRIMESTRE 2018;14-03-2019;1900;0;49;1;Spese correnti;4;Trasferimenti correnti;2;Trasferimenti correnti a Famiglie;2;Interventi assistenziali;999;Altri assegni e sussidi assistenziali;14-03-2019;
134;9;0;"720,00";"9.720,00";OMESSO NOMINATIVO NEL RISPETTO DELLA NORMATIVA SULLA PROTEZIONE DATI PERSONALI; ;LIQUIDAZIONE ICDB (IMPEGNATIVE DI CURA DOMICILIARE DI TIPO B) 2^ SEMESTRE 2018 E ICDM (DI TIPO M) 4^ TRIMESTRE 2018;14-03-2019;1900;0;49;1;Spese correnti;4;Trasferimenti correnti;2;Trasferimenti correnti a Famiglie;2;Interventi assistenziali;999;Altri assegni e sussidi assistenziali;14-03-2019;
134;10;0;"720,00";"9.720,00";OMESSO NOMINATIVO NEL RISPETTO DELLA NORMATIVA SULLA PROTEZIONE DATI PERSONALI; ;LIQUIDAZIONE ICDB (IMPEGNATIVE DI CURA DOMICILIARE DI TIPO B) 2^ SEMESTRE 2018 E ICDM (DI TIPO M) 4^ TRIMESTRE 2018;14-03-2019;1900;0;49;1;Spese correnti;4;Trasferimenti correnti;2;Trasferimenti correnti a Famiglie;2;Interventi assistenziali;999;Altri assegni e sussidi assistenziali;14-03-2019;
134;11;0;"240,00";"9.720,00";OMESSO NOMINATIVO NEL RISPETTO DELLA NORMATIVA SULLA PROTEZIONE DATI PERSONALI; ;LIQUIDAZIONE ICDB (IMPEGNATIVE DI CURA DOMICILIARE DI TIPO B) 2^ SEMESTRE 2018 E ICDM (DI TIPO M) 4^ TRIMESTRE 2018;14-03-2019;1900;0;49;1;Spese correnti;4;Trasferimenti correnti;2;Trasferimenti correnti a Famiglie;2;Interventi assistenziali;999;Altri assegni e sussidi assistenziali;14-03-2019;
134;12;0;"720,00";"9.720,00";OMESSO NOMINATIVO NEL RISPETTO DELLA NORMATIVA SULLA PROTEZIONE DATI PERSONALI; ;LIQUIDAZIONE ICDB (IMPEGNATIVE DI CURA DOMICILIARE DI TIPO B) 2^ SEMESTRE 2018 E ICDM (DI TIPO M) 4^ TRIMESTRE 2018;14-03-2019;1900;0;49;1;Spese correnti;4;Trasferimenti correnti;2;Trasferimenti correnti a Famiglie;2;Interventi assistenziali;999;Altri assegni e sussidi assistenziali;14-03-2019;
134;13;0;"720,00";"9.720,00";OMESSO NOMINATIVO NEL RISPETTO DELLA NORMATIVA SULLA PROTEZIONE DATI PERSONALI; ;LIQUIDAZIONE ICDB (IMPEGNATIVE DI CURA DOMICILIARE DI TIPO B) 2^ SEMESTRE 2018 E ICDM (DI TIPO M) 4^ TRIMESTRE 2018;14-03-2019;1900;0;49;1;Spese correnti;4;Trasferimenti correnti;2;Trasferimenti correnti a Famiglie;2;Interventi assistenziali;999;Altri assegni e sussidi assistenziali;14-03-2019;
134;14;0;"720,00";"9.720,00";OMESSO NOMINATIVO NEL RISPETTO DELLA NORMATIVA SULLA PROTEZIONE DATI PERSONALI; ;LIQUIDAZIONE ICDB (IMPEGNATIVE DI CURA DOMICILIARE DI TIPO B) 2^ SEMESTRE 2018 E ICDM (DI TIPO M) 4^ TRIMESTRE 2018;14-03-2019;1900;0;49;1;Spese correnti;4;Trasferimenti correnti;2;Trasferimenti correnti a Famiglie;2;Interventi assistenziali;999;Altri assegni e sussidi assistenziali;14-03-2019;
134;15;0;"720,00";"9.720,00";OMESSO NOMINATIVO NEL RISPETTO DELLA NORMATIVA SULLA PROTEZIONE DATI PERSONALI; ;LIQUIDAZIONE ICDB (IMPEGNATIVE DI CURA DOMICILIARE DI TIPO B) 2^ SEMESTRE 2018 E ICDM (DI TIPO M) 4^ TRIMESTRE 2018;14-03-2019;1900;0;49;1;Spese correnti;4;Trasferimenti correnti;2;Trasferimenti correnti a Famiglie;2;Interventi assistenziali;999;Altri assegni e sussidi assistenziali;14-03-2019;
135;1;0;"1.713,56";"1.713,56";MINGHETTI FRANCESCO;ZCE274DBB4;"SALDO Fatt.n. FPA 1/19  del 05/03/2019 Determina n: 38 del 01/03/2019, CIG: ZCE274DBB4";14-03-2019;2151;0;39;2;Spese in conto capitale;2;Investimenti fissi lordi e acquisto di terreni;1;Beni materiali;7;Hardware;999;Hardware n.a.c.;14-03-2019;
136;1;0;"720,00";"4.680,00";OMESSO NOMINATIVO NEL RISPETTO DELLA NORMATIVA SULLA PROTEZIONE DATI PERSONALI; ;LIQUIDAZIONE ICDB (IMPEGNATIVE DI CURA DOMICILIARE DI TIPO B) 2^ SEMESTRE 2018 E ICDM (DI TIPO M) 4^ TRIMESTRE 2018;14-03-2019;1900;0;49;1;Spese correnti;4;Trasferimenti correnti;2;Trasferimenti correnti a Famiglie;2;Interventi assistenziali;999;Altri assegni e sussidi assistenziali;14-03-2019;
136;2;0;"720,00";"4.680,00";OMESSO NOMINATIVO NEL RISPETTO DELLA NORMATIVA SULLA PROTEZIONE DATI PERSONALI; ;LIQUIDAZIONE ICDB (IMPEGNATIVE DI CURA DOMICILIARE DI TIPO B) 2^ SEMESTRE 2018 E ICDM (DI TIPO M) 4^ TRIMESTRE 2018;14-03-2019;1900;0;49;1;Spese correnti;4;Trasferimenti correnti;2;Trasferimenti correnti a Famiglie;2;Interventi assistenziali;999;Altri assegni e sussidi assistenziali;14-03-2019;
136;3;0;"360,00";"4.680,00";OMESSO NOMINATIVO NEL RISPETTO DELLA NORMATIVA SULLA PROTEZIONE DATI PERSONALI; ;LIQUIDAZIONE ICDB (IMPEGNATIVE DI CURA DOMICILIARE DI TIPO B) 2^ SEMESTRE 2018 E ICDM (DI TIPO M) 4^ TRIMESTRE 2018;14-03-2019;1900;0;49;1;Spese correnti;4;Trasferimenti correnti;2;Trasferimenti correnti a Famiglie;2;Interventi assistenziali;999;Altri assegni e sussidi assistenziali;14-03-2019;
136;4;0;"720,00";"4.680,00";OMESSO NOMINATIVO NEL RISPETTO DELLA NORMATIVA SULLA PROTEZIONE DATI PERSONALI; ;LIQUIDAZIONE ICDB (IMPEGNATIVE DI CURA DOMICILIARE DI TIPO B) 2^ SEMESTRE 2018 E ICDM (DI TIPO M) 4^ TRIMESTRE 2018;14-03-2019;1900;0;49;1;Spese correnti;4;Trasferimenti correnti;2;Trasferimenti correnti a Famiglie;2;Interventi assistenziali;999;Altri assegni e sussidi assistenziali;14-03-2019;
136;5;0;"720,00";"4.680,00";OMESSO NOMINATIVO NEL RISPETTO DELLA NORMATIVA SULLA PROTEZIONE DATI PERSONALI; ;LIQUIDAZIONE ICDB (IMPEGNATIVE DI CURA DOMICILIARE DI TIPO B) 2^ SEMESTRE 2018 E ICDM (DI TIPO M) 4^ TRIMESTRE 2018;14-03-2019;1900;0;49;1;Spese correnti;4;Trasferimenti correnti;2;Trasferimenti correnti a Famiglie;2;Interventi assistenziali;999;Altri assegni e sussidi assistenziali;14-03-2019;
136;6;0;"720,00";"4.680,00";OMESSO NOMINATIVO NEL RISPETTO DELLA NORMATIVA SULLA PROTEZIONE DATI PERSONALI; ;LIQUIDAZIONE ICDB (IMPEGNATIVE DI CURA DOMICILIARE DI TIPO B) 2^ SEMESTRE 2018 E ICDM (DI TIPO M) 4^ TRIMESTRE 2018;14-03-2019;1900;0;49;1;Spese correnti;4;Trasferimenti correnti;2;Trasferimenti correnti a Famiglie;2;Interventi assistenziali;999;Altri assegni e sussidi assistenziali;14-03-2019;
136;7;0;"720,00";"4.680,00";OMESSO NOMINATIVO NEL RISPETTO DELLA NORMATIVA SULLA PROTEZIONE DATI PERSONALI; ;LIQUIDAZIONE ICDB (IMPEGNATIVE DI CURA DOMICILIARE DI TIPO B) 2^ SEMESTRE 2018 E ICDM (DI TIPO M) 4^ TRIMESTRE 2018;14-03-2019;1900;0;49;1;Spese correnti;4;Trasferimenti correnti;2;Trasferimenti correnti a Famiglie;2;Interventi assistenziali;999;Altri assegni e sussidi assistenziali;14-03-2019;
137;1;0;"240,00";"240,00";FRISON MICHELE ANGELO; ;ANTICIPO SPESE PER GOGGIORNI CLIMATICI  PER ANZIANI - SOGGIORNO TERMALE DAL 17 AL 23 MARZO E DAL 20 AL 26 OTTOBRE;20-03-2019;1703;0;37;1;Spese correnti;3;Acquisto di beni e servizi;2;Acquisto di servizi;99;Altri servizi;999;Altri servizi diversi n.a.c.;20-03-2019;
138;1;0;"1.486,80";"1.486,80";MARGHERITA SOCIETA' COOPERATIVA ONLUS;Z6B20BE3C9;SALDO Fatt.n. 31/E  del 28/02/2019 SERVIZIO DI SOSTEGNO SOCIO EDUCATIVO MESE DI FEBBRAIO 2019.;20-03-2019;1611;0;288;1;Spese correnti;3;Acquisto di beni e servizi;2;Acquisto di servizi;11;Prestazioni professionali e specialistiche;2;"Assistenza psicologica, sociale e religiosa";20-03-2019;
139;1;0;"600,00";"7.680,00";OMESSO NOMINATIVO NEL RISPETTO DELLA NORMATIVA SULLA PROTEZIONE DATI PERSONALI; ;LIQUIDAZIONE ICDB (IMPEGNATIVE DI CURA DOMICILIARE DI TIPO B) 2^ SEMESTRE 2018 E ICDM (DI TIPO M) 4^ TRIMESTRE 2018;20-03-2019;1900;0;49;1;Spese correnti;4;Trasferimenti correnti;2;Trasferimenti correnti a Famiglie;2;Interventi assistenziali;999;Altri assegni e sussidi assistenziali;20-03-2019;
139;2;0;"720,00";"7.680,00";OMESSO NOMINATIVO NEL RISPETTO DELLA NORMATIVA SULLA PROTEZIONE DATI PERSONALI; ;LIQUIDAZIONE ICDB (IMPEGNATIVE DI CURA DOMICILIARE DI TIPO B) 2^ SEMESTRE 2018 E ICDM (DI TIPO M) 4^ TRIMESTRE 2018;20-03-2019;1900;0;49;1;Spese correnti;4;Trasferimenti correnti;2;Trasferimenti correnti a Famiglie;2;Interventi assistenziali;999;Altri assegni e sussidi assistenziali;20-03-2019;
139;3;0;"720,00";"7.680,00";OMESSO NOMINATIVO NEL RISPETTO DELLA NORMATIVA SULLA PROTEZIONE DATI PERSONALI; ;LIQUIDAZIONE ICDB (IMPEGNATIVE DI CURA DOMICILIARE DI TIPO B) 2^ SEMESTRE 2018 E ICDM (DI TIPO M) 4^ TRIMESTRE 2018;20-03-2019;1900;0;49;1;Spese correnti;4;Trasferimenti correnti;2;Trasferimenti correnti a Famiglie;2;Interventi assistenziali;999;Altri assegni e sussidi assistenziali;20-03-2019;
139;4;0;"720,00";"7.680,00";OMESSO NOMINATIVO NEL RISPETTO DELLA NORMATIVA SULLA PROTEZIONE DATI PERSONALI; ;LIQUIDAZIONE ICDB (IMPEGNATIVE DI CURA DOMICILIARE DI TIPO B) 2^ SEMESTRE 2018 E ICDM (DI TIPO M) 4^ TRIMESTRE 2018;20-03-2019;1900;0;49;1;Spese correnti;4;Trasferimenti correnti;2;Trasferimenti correnti a Famiglie;2;Interventi assistenziali;999;Altri assegni e sussidi assistenziali;20-03-2019;
139;5;0;"720,00";"7.680,00";OMESSO NOMINATIVO NEL RISPETTO DELLA NORMATIVA SULLA PROTEZIONE DATI PERSONALI; ;LIQUIDAZIONE ICDB (IMPEGNATIVE DI CURA DOMICILIARE DI TIPO B) 2^ SEMESTRE 2018 E ICDM (DI TIPO M) 4^ TRIMESTRE 2018;20-03-2019;1900;0;49;1;Spese correnti;4;Trasferimenti correnti;2;Trasferimenti correnti a Famiglie;2;Interventi assistenziali;999;Altri assegni e sussidi assistenziali;20-03-2019;
139;6;0;"480,00";"7.680,00";OMESSO NOMINATIVO NEL RISPETTO DELLA NORMATIVA SULLA PROTEZIONE DATI PERSONALI; ;LIQUIDAZIONE ICDB (IMPEGNATIVE DI CURA DOMICILIARE DI TIPO B) 2^ SEMESTRE 2018 E ICDM (DI TIPO M) 4^ TRIMESTRE 2018;20-03-2019;1900;0;49;1;Spese correnti;4;Trasferimenti correnti;2;Trasferimenti correnti a Famiglie;2;Interventi assistenziali;999;Altri assegni e sussidi assistenziali;20-03-2019;
139;7;0;"720,00";"7.680,00";OMESSO NOMINATIVO NEL RISPETTO DELLA NORMATIVA SULLA PROTEZIONE DATI PERSONALI; ;LIQUIDAZIONE ICDB (IMPEGNATIVE DI CURA DOMICILIARE DI TIPO B) 2^ SEMESTRE 2018 E ICDM (DI TIPO M) 4^ TRIMESTRE 2018;20-03-2019;1900;0;49;1;Spese correnti;4;Trasferimenti correnti;2;Trasferimenti correnti a Famiglie;2;Interventi assistenziali;999;Altri assegni e sussidi assistenziali;20-03-2019;
139;8;0;"480,00";"7.680,00";OMESSO NOMINATIVO NEL RISPETTO DELLA NORMATIVA SULLA PROTEZIONE DATI PERSONALI; ;LIQUIDAZIONE ICDB (IMPEGNATIVE DI CURA DOMICILIARE DI TIPO B) 2^ SEMESTRE 2018 E ICDM (DI TIPO M) 4^ TRIMESTRE 2018;20-03-2019;1900;0;49;1;Spese correnti;4;Trasferimenti correnti;2;Trasferimenti correnti a Famiglie;2;Interventi assistenziali;999;Altri assegni e sussidi assistenziali;20-03-2019;
139;9;0;"480,00";"7.680,00";OMESSO NOMINATIVO NEL RISPETTO DELLA NORMATIVA SULLA PROTEZIONE DATI PERSONALI; ;LIQUIDAZIONE ICDB (IMPEGNATIVE DI CURA DOMICILIARE DI TIPO B) 2^ SEMESTRE 2018 E ICDM (DI TIPO M) 4^ TRIMESTRE 2018;20-03-2019;1900;0;49;1;Spese correnti;4;Trasferimenti correnti;2;Trasferimenti correnti a Famiglie;2;Interventi assistenziali;999;Altri assegni e sussidi assistenziali;20-03-2019;
139;10;0;"720,00";"7.680,00";OMESSO NOMINATIVO NEL RISPETTO DELLA NORMATIVA SULLA PROTEZIONE DATI PERSONALI; ;LIQUIDAZIONE ICDB (IMPEGNATIVE DI CURA DOMICILIARE DI TIPO B) 2^ SEMESTRE 2018 E ICDM (DI TIPO M) 4^ TRIMESTRE 2018;20-03-2019;1900;0;49;1;Spese correnti;4;Trasferimenti correnti;2;Trasferimenti correnti a Famiglie;2;Interventi assistenziali;999;Altri assegni e sussidi assistenziali;20-03-2019;
139;11;0;"240,00";"7.680,00";OMESSO NOMINATIVO NEL RISPETTO DELLA NORMATIVA SULLA PROTEZIONE DATI PERSONALI; ;LIQUIDAZIONE ICDB (IMPEGNATIVE DI CURA DOMICILIARE DI TIPO B) 2^ SEMESTRE 2018 E ICDM (DI TIPO M) 4^ TRIMESTRE 2018;20-03-2019;1900;0;49;1;Spese correnti;4;Trasferimenti correnti;2;Trasferimenti correnti a Famiglie;2;Interventi assistenziali;999;Altri assegni e sussidi assistenziali;20-03-2019;
139;12;0;"720,00";"7.680,00";OMESSO NOMINATIVO NEL RISPETTO DELLA NORMATIVA SULLA PROTEZIONE DATI PERSONALI; ;LIQUIDAZIONE ICDB (IMPEGNATIVE DI CURA DOMICILIARE DI TIPO B) 2^ SEMESTRE 2018 E ICDM (DI TIPO M) 4^ TRIMESTRE 2018;20-03-2019;1900;0;49;1;Spese correnti;4;Trasferimenti correnti;2;Trasferimenti correnti a Famiglie;2;Interventi assistenziali;999;Altri assegni e sussidi assistenziali;20-03-2019;
139;13;0;"360,00";"7.680,00";OMESSO NOMINATIVO NEL RISPETTO DELLA NORMATIVA SULLA PROTEZIONE DATI PERSONALI; ;LIQUIDAZIONE ICDB (IMPEGNATIVE DI CURA DOMICILIARE DI TIPO B) 2^ SEMESTRE 2018 E ICDM (DI TIPO M) 4^ TRIMESTRE 2018;20-03-2019;1900;0;49;1;Spese correnti;4;Trasferimenti correnti;2;Trasferimenti correnti a Famiglie;2;Interventi assistenziali;999;Altri assegni e sussidi assistenziali;20-03-2019;
140;1;0;"1.722,24";"1.722,24";MONTICELLO MARTA;Z82231833F;SALDO Fatt.n. 1/2019  del 24/02/2019 opposizione all'archiviazione nel procedimento penale n. 1222/18 RGNR presso il Tribunale di Vicenza;20-03-2019;130;0;161;1;Spese correnti;3;Acquisto di beni e servizi;2;Acquisto di servizi;11;Prestazioni professionali e specialistiche;6;Patrocinio legale;20-03-2019;
141;1;0;"195,00";"195,00";BIASION NADIA;ZD026B3E49;SALDO Fatt.n. 16  del 03/03/2019 FORNITURA PIEGHEVOLI;20-03-2019;1703;0;6;1;Spese correnti;3;Acquisto di beni e servizi;2;Acquisto di servizi;99;Altri servizi;999;Altri servizi diversi n.a.c.;20-03-2019;
142;1;0;"1.573,80";"1.573,80";OPEN SOFTWARE S.R.L.;Z7F2643FB0;SALDO Fatt.n. 001137  del 28/02/2019 SERVIZIO DI ASSISTENZA POLCITY ONLINE ANNO 2019+;21-03-2019;264;0;415;1;Spese correnti;3;Acquisto di beni e servizi;2;Acquisto di servizi;19;Servizi informatici e di telecomunicazioni;1;Gestione e manutenzione applicazioni;21-03-2019;
143;1;0;"610,00";"610,00";UNIMATICA S.P.A.;ZED24E5B90;SALDO Fatt.n. 111 PA  del 08/03/2019 SIOPE PIU' START UP PER IMPOSTAZIONE AMBIENTE.;21-03-2019;264;0;315;1;Spese correnti;3;Acquisto di beni e servizi;2;Acquisto di servizi;19;Servizi informatici e di telecomunicazioni;7;Servizi di gestione documentale;21-03-2019;
144;1;0;"720,00";"11.520,00";OMESSO NOMINATIVO NEL RISPETTO DELLA NORMATIVA SULLA PROTEZIONE DATI PERSONALI; ;LIQUIDAZIONE ICDB (IMPEGNATIVE DI CURA DOMICILIARE DI TIPO B) 2^ SEMESTRE 2018 E ICDM (DI TIPO M) 4^ TRIMESTRE 2018;21-03-2019;1900;0;49;1;Spese correnti;4;Trasferimenti correnti;2;Trasferimenti correnti a Famiglie;2;Interventi assistenziali;999;Altri assegni e sussidi assistenziali;21-03-2019;
144;2;0;"1.200,00";"11.520,00";OMESSO NOMINATIVO NEL RISPETTO DELLA NORMATIVA SULLA PROTEZIONE DATI PERSONALI; ;LIQUIDAZIONE ICDB (IMPEGNATIVE DI CURA DOMICILIARE DI TIPO B) 2^ SEMESTRE 2018 E ICDM (DI TIPO M) 4^ TRIMESTRE 2018;21-03-2019;1900;0;49;1;Spese correnti;4;Trasferimenti correnti;2;Trasferimenti correnti a Famiglie;2;Interventi assistenziali;999;Altri assegni e sussidi assistenziali;21-03-2019;
144;3;0;"1.200,00";"11.520,00";OMESSO NOMINATIVO NEL RISPETTO DELLA NORMATIVA SULLA PROTEZIONE DATI PERSONALI; ;LIQUIDAZIONE ICDB (IMPEGNATIVE DI CURA DOMICILIARE DI TIPO B) 2^ SEMESTRE 2018 E ICDM (DI TIPO M) 4^ TRIMESTRE 2018;21-03-2019;1900;0;49;1;Spese correnti;4;Trasferimenti correnti;2;Trasferimenti correnti a Famiglie;2;Interventi assistenziali;999;Altri assegni e sussidi assistenziali;21-03-2019;
144;4;0;"720,00";"11.520,00";OMESSO NOMINATIVO NEL RISPETTO DELLA NORMATIVA SULLA PROTEZIONE DATI PERSONALI; ;LIQUIDAZIONE ICDB (IMPEGNATIVE DI CURA DOMICILIARE DI TIPO B) 2^ SEMESTRE 2018 E ICDM (DI TIPO M) 4^ TRIMESTRE 2018;21-03-2019;1900;0;49;1;Spese correnti;4;Trasferimenti correnti;2;Trasferimenti correnti a Famiglie;2;Interventi assistenziali;999;Altri assegni e sussidi assistenziali;21-03-2019;
144;5;0;"720,00";"11.520,00";OMESSO NOMINATIVO NEL RISPETTO DELLA NORMATIVA SULLA PROTEZIONE DATI PERSONALI; ;LIQUIDAZIONE ICDB (IMPEGNATIVE DI CURA DOMICILIARE DI TIPO B) 2^ SEMESTRE 2018 E ICDM (DI TIPO M) 4^ TRIMESTRE 2018;21-03-2019;1900;0;49;1;Spese correnti;4;Trasferimenti correnti;2;Trasferimenti correnti a Famiglie;2;Interventi assistenziali;999;Altri assegni e sussidi assistenziali;21-03-2019;
144;6;0;"1.200,00";"11.520,00";OMESSO NOMINATIVO NEL RISPETTO DELLA NORMATIVA SULLA PROTEZIONE DATI PERSONALI; ;LIQUIDAZIONE ICDB (IMPEGNATIVE DI CURA DOMICILIARE DI TIPO B) 2^ SEMESTRE 2018 E ICDM (DI TIPO M) 4^ TRIMESTRE 2018;21-03-2019;1900;0;49;1;Spese correnti;4;Trasferimenti correnti;2;Trasferimenti correnti a Famiglie;2;Interventi assistenziali;999;Altri assegni e sussidi assistenziali;21-03-2019;
144;7;0;"720,00";"11.520,00";OMESSO NOMINATIVO NEL RISPETTO DELLA NORMATIVA SULLA PROTEZIONE DATI PERSONALI; ;LIQUIDAZIONE ICDB (IMPEGNATIVE DI CURA DOMICILIARE DI TIPO B) 2^ SEMESTRE 2018 E ICDM (DI TIPO M) 4^ TRIMESTRE 2018;21-03-2019;1900;0;49;1;Spese correnti;4;Trasferimenti correnti;2;Trasferimenti correnti a Famiglie;2;Interventi assistenziali;999;Altri assegni e sussidi assistenziali;21-03-2019;
144;8;0;"480,00";"11.520,00";OMESSO NOMINATIVO NEL RISPETTO DELLA NORMATIVA SULLA PROTEZIONE DATI PERSONALI; ;LIQUIDAZIONE ICDB (IMPEGNATIVE DI CURA DOMICILIARE DI TIPO B) 2^ SEMESTRE 2018 E ICDM (DI TIPO M) 4^ TRIMESTRE 2018;21-03-2019;1900;0;49;1;Spese correnti;4;Trasferimenti correnti;2;Trasferimenti correnti a Famiglie;2;Interventi assistenziali;999;Altri assegni e sussidi assistenziali;21-03-2019;
144;9;0;"1.200,00";"11.520,00";OMESSO NOMINATIVO NEL RISPETTO DELLA NORMATIVA SULLA PROTEZIONE DATI PERSONALI; ;LIQUIDAZIONE ICDB (IMPEGNATIVE DI CURA DOMICILIARE DI TIPO B) 2^ SEMESTRE 2018 E ICDM (DI TIPO M) 4^ TRIMESTRE 2018;21-03-2019;1900;0;49;1;Spese correnti;4;Trasferimenti correnti;2;Trasferimenti correnti a Famiglie;2;Interventi assistenziali;999;Altri assegni e sussidi assistenziali;21-03-2019;
144;10;0;"720,00";"11.520,00";OMESSO NOMINATIVO NEL RISPETTO DELLA NORMATIVA SULLA PROTEZIONE DATI PERSONALI; ;LIQUIDAZIONE ICDB (IMPEGNATIVE DI CURA DOMICILIARE DI TIPO B) 2^ SEMESTRE 2018 E ICDM (DI TIPO M) 4^ TRIMESTRE 2018;21-03-2019;1900;0;49;1;Spese correnti;4;Trasferimenti correnti;2;Trasferimenti correnti a Famiglie;2;Interventi assistenziali;999;Altri assegni e sussidi assistenziali;21-03-2019;
144;11;0;"1.200,00";"11.520,00";OMESSO NOMINATIVO NEL RISPETTO DELLA NORMATIVA SULLA PROTEZIONE DATI PERSONALI; ;LIQUIDAZIONE ICDB (IMPEGNATIVE DI CURA DOMICILIARE DI TIPO B) 2^ SEMESTRE 2018 E ICDM (DI TIPO M) 4^ TRIMESTRE 2018;21-03-2019;1900;0;49;1;Spese correnti;4;Trasferimenti correnti;2;Trasferimenti correnti a Famiglie;2;Interventi assistenziali;999;Altri assegni e sussidi assistenziali;21-03-2019;
144;12;0;"720,00";"11.520,00";OMESSO NOMINATIVO NEL RISPETTO DELLA NORMATIVA SULLA PROTEZIONE DATI PERSONALI; ;LIQUIDAZIONE ICDB (IMPEGNATIVE DI CURA DOMICILIARE DI TIPO B) 2^ SEMESTRE 2018 E ICDM (DI TIPO M) 4^ TRIMESTRE 2018;21-03-2019;1900;0;49;1;Spese correnti;4;Trasferimenti correnti;2;Trasferimenti correnti a Famiglie;2;Interventi assistenziali;999;Altri assegni e sussidi assistenziali;21-03-2019;
144;13;0;"720,00";"11.520,00";OMESSO NOMINATIVO NEL RISPETTO DELLA NORMATIVA SULLA PROTEZIONE DATI PERSONALI; ;LIQUIDAZIONE ICDB (IMPEGNATIVE DI CURA DOMICILIARE DI TIPO B) 2^ SEMESTRE 2018 E ICDM (DI TIPO M) 4^ TRIMESTRE 2018;21-03-2019;1900;0;49;1;Spese correnti;4;Trasferimenti correnti;2;Trasferimenti correnti a Famiglie;2;Interventi assistenziali;999;Altri assegni e sussidi assistenziali;21-03-2019;
145;1;0;"1.918,53";"7.674,12";OMESSO NOMINATIVO NEL RISPETTO DELLA NORMATIVA SULLA PROTEZIONE DATI PERSONALI; ;INTERVENTI ECONOMICI A FAVORE DELLE FAMIGLIE CON FIGLI RIMASTI ORFANI DI UN GENITORE. ANNO 2018;21-03-2019;1908;0;48;1;Spese correnti;4;Trasferimenti correnti;2;Trasferimenti correnti a Famiglie;2;Interventi assistenziali;999;Altri assegni e sussidi assistenziali;21-03-2019;
145;2;0;"1.918,53";"7.674,12";OMESSO NOMINATIVO NEL RISPETTO DELLA NORMATIVA SULLA PROTEZIONE DATI PERSONALI; ;INTERVENTI ECONOMICI A FAVORE DELLE FAMIGLIE CON FIGLI RIMASTI ORFANI DI UN GENITORE. ANNO 2018;21-03-2019;1908;0;48;1;Spese correnti;4;Trasferimenti correnti;2;Trasferimenti correnti a Famiglie;2;Interventi assistenziali;999;Altri assegni e sussidi assistenziali;21-03-2019;
145;3;0;"1.918,53";"7.674,12";OMESSO NOMINATIVO NEL RISPETTO DELLA NORMATIVA SULLA PROTEZIONE DATI PERSONALI; ;INTERVENTI ECONOMICI A FAVORE DELLE FAMIGLIE CON FIGLI RIMASTI ORFANI DI UN GENITORE. ANNO 2018;21-03-2019;1908;0;48;1;Spese correnti;4;Trasferimenti correnti;2;Trasferimenti correnti a Famiglie;2;Interventi assistenziali;999;Altri assegni e sussidi assistenziali;21-03-2019;
145;4;0;"1.918,53";"7.674,12";OMESSO NOMINATIVO NEL RISPETTO DELLA NORMATIVA SULLA PROTEZIONE DATI PERSONALI; ;INTERVENTI ECONOMICI A FAVORE DELLE FAMIGLIE CON FIGLI RIMASTI ORFANI DI UN GENITORE. ANNO 2018;21-03-2019;1908;0;48;1;Spese correnti;4;Trasferimenti correnti;2;Trasferimenti correnti a Famiglie;2;Interventi assistenziali;999;Altri assegni e sussidi assistenziali;21-03-2019;
146;1;0;"3.708,61";"3.708,61";SERENISSIMA RISTORAZIONE S.P.A.;7288762CAB;SALDO Fatt.n. 01489/4  del 28/02/2019 FORNITURA PASTI A DOMICILIO MESE DI FEBBRAIO 2019;27-03-2019;1704;0;33;1;Spese correnti;3;Acquisto di beni e servizi;2;Acquisto di servizi;15;Contratti di servizio pubblico;9;Contratti di servizio di assistenza sociale domiciliare;27-03-2019;
147;1;0;"1.012,60";"1.012,60";ACCATRE S.R.L.;Z9C26333FE;SALDO Fatt.n. 190105/1  del 28/02/2019 ATTIVAZIONE SERVIZIO DRIVERS CONSERVAZIONE EFFETTUATA NEL 2018;27-03-2019;264;0;388;1;Spese correnti;3;Acquisto di beni e servizi;2;Acquisto di servizi;19;Servizi informatici e di telecomunicazioni;7;Servizi di gestione documentale;27-03-2019;
148;1;0;"170,23";"170,23";AUTOFFICINA ELETTRAUTO PIZZATO ENZO;ZAF1D259E7;SALDO Fatt.n. 60  del 20/03/2019 LAVORI DI MANUTENZIONE AUTOVETTTURA FIAT DOBLO' IN USO AI SERVIZI SOCIALI TARGATA DO800VF;27-03-2019;233;0;416;1;Spese correnti;3;Acquisto di beni e servizi;2;Acquisto di servizi;9;Manutenzione ordinaria e riparazioni;1;"Manutenzione ordinaria e riparazioni di mezzi di trasporto ad uso civile, di sicurezza e ordine pubblico";27-03-2019;
149;1;0;"5,88";"5,88";COMUNE DI RIESE PIO DECIMO; ;RIMBORSO SPESE DI NOTIFICA ANNO 2019;28-03-2019;273;0;40;1;Spese correnti;4;Trasferimenti correnti;1;Trasferimenti correnti a Amministrazioni Pubbliche;2;Trasferimenti correnti a Amministrazioni Locali;3;Trasferimenti correnti a Comuni;28-03-2019;
150;1;0;"1.200,00";"1.200,00";COMUNE DI COLCERESA; ;PROGETTO HOME CARE PREMIUM 2017: RIMBORSO AL COMUNE DI COLCERESA PER PRESTAZIONI DI ASSISTENZA DOMICILIARE  PERIODO SETTEMBRE  DICEMBRE 2018;28-03-2019;1610;0;59;1;Spese correnti;3;Acquisto di beni e servizi;2;Acquisto di servizi;15;Contratti di servizio pubblico;9;Contratti di servizio di assistenza sociale domiciliare;28-03-2019;
151;1;0;"4.270,00";"4.270,00";STRADE TRAFFICO SICUREZZA S.R.L.;Z19216493A;SALDO Fatt.n. 3/1  del 01/02/2019 MANUTENZIONE ED ASSISTENZA TECNICA SISTEMA "STSGUARD" CONTROLLO ZTL;28-03-2019;506;0;418;1;Spese correnti;3;Acquisto di beni e servizi;2;Acquisto di servizi;9;Manutenzione ordinaria e riparazioni;4;Manutenzione ordinaria e riparazioni di impianti e macchinari;28-03-2019;
152;1;0;"876,82";"876,82";F.A.P. DI MARCOLONGO LUIGI & C. SNC;Z6F25D6929;ACCONTO Fatt.n. 44/FE  del 14/03/2019 DDT NR 98/2019 E 110/2019;28-03-2019;401;0;367;1;Spese correnti;3;Acquisto di beni e servizi;1;Acquisto di beni;2;Altri beni di consumo;4;Vestiario;28-03-2019;
153;1;0;"236,00";"1.453,38";OPEN SOFTWARE S.R.L.;Z2726D7C64;SALDO Fatt.n. 000799  del 28/02/2019 ANTICIPO BOLLI POSTALI E IMPOSTA DI BOLLO;28-03-2019;510;0;16;1;Spese correnti;3;Acquisto di beni e servizi;2;Acquisto di servizi;16;Servizi amministrativi;999;Altre spese per servizi amministrativi;28-03-2019;
153;2;0;"324,58";"1.453,38";OPEN SOFTWARE S.R.L.;Z2726D7C64;SALDO Fatt.n. 000798  del 28/02/2019 RENDICONTAZIONE/STAMPA/IMBUSTAMENTO VERBALI;28-03-2019;510;0;16;1;Spese correnti;3;Acquisto di beni e servizi;2;Acquisto di servizi;16;Servizi amministrativi;999;Altre spese per servizi amministrativi;28-03-2019;
153;3;0;"892,80";"1.453,38";OPEN SOFTWARE S.R.L.;Z2726D7C64;SALDO Fatt.n. 000800  del 28/02/2019 ANTICIPAZIONE SPESE PER VALORI BOLLATI E IMPOSTA DI BOLLO;28-03-2019;510;0;16;1;Spese correnti;3;Acquisto di beni e servizi;2;Acquisto di servizi;16;Servizi amministrativi;999;Altre spese per servizi amministrativi;28-03-2019;
154;1;0;"915,00";"915,00";OPEN SOFTWARE S.R.L.;Z7426F1569;SALDO Fatt.n. 001064  del 28/02/2019 FORNITURA BOLLETTINI VERBALI;28-03-2019;401;0;17;1;Spese correnti;3;Acquisto di beni e servizi;1;Acquisto di beni;2;Altri beni di consumo;14;Stampati specialistici;28-03-2019;
155;1;0;"138,68";"138,68";TELECOM ITALIA S.P.A. - (TIM S.P.A.);ZE422929C4;ACCONTO Fatt.n. 7X00771099  del 14/02/2019 IDENTIFICATIVO CONTRATTO: 888011662046 - 2BIM 2019;28-03-2019;231;0;103;1;Spese correnti;3;Acquisto di beni e servizi;2;Acquisto di servizi;5;Utenze e canoni;2;Telefonia mobile;28-03-2019;
156;1;0;"214,92";"214,92";TELECOM ITALIA S.P.A. - (TIM S.P.A.);ZE422929C4;SALDO Fatt.n. 7X00771099  del 14/02/2019 IDENTIFICATIVO CONTRATTO: 888011662046 - 2BIM 2019;28-03-2019;231;0;103;1;Spese correnti;3;Acquisto di beni e servizi;2;Acquisto di servizi;5;Utenze e canoni;2;Telefonia mobile;28-03-2019;
